Workbook

Sheet Cost Comparison
B2: SVCE Business Cost Comparison Calculator | T2: Updated 7/3/17
B4: Required Information | N4: Optional Information
B5: Your Rate
B6: A1 (COM-1)
B8: Your Usage
H9: SUMMER | L9: WINTER
B10: =IF(VLOOKUP(B6,Rates!A:AA,2,0)=FALSE,"","One Month of Usage:") ->  | F10: Summer Billing Period (days): | J10: Winter Billing Period (days):
F11: =IF(VLOOKUP($B$6,Rates!A:AA,3,0)=FALSE," ","Summer Month Usage:") -> Summer Month Usage: | J11: =IF(VLOOKUP($B$6,Rates!A:AA,4,0)=FALSE," ","Winter Month Usage:") -> Winter Month Usage: | P11: PCIA Vintage: | R11: 2017
F12: =IF(VLOOKUP($B$6,Rates!A:AA,11,0)=FALSE," ","Max Peak (kW):") ->  | J12: =IF(VLOOKUP($B$6,Rates!A:AA,14,0)=FALSE," ","Max Peak (kW):") ->  | P12: Franchise Fee Exemption: | R12: No
F13: =IF(VLOOKUP($B$6,Rates!A:AA,12,0)=FALSE," ","Max Part Peak (kW):") ->  | J13: =IF(VLOOKUP($B$6,Rates!A:AA,15,0)=FALSE," ","Part Peak (kW):") ->  | P13: Phase: | R13: Single-phase
F14: =IF(VLOOKUP($B$6,Rates!A:AA,13,0)=FALSE," ","Max Demand (kW):") ->  | J14: =IF(VLOOKUP($B$6,Rates!A:AA,16,0)=FALSE," ","Max Demand (kW):") ->  | P14: CARE Discount: | R14: No
F15: =IF(VLOOKUP($B$6,Rates!A:AA,5,0)=FALSE," ","Peak (kWh):") ->  | J15: =IF(VLOOKUP($B$6,Rates!A:AA,8,0)=FALSE," ","Peak (kWh):") -> 
F16: =IF(VLOOKUP($B$6,Rates!A:AA,6,0)=FALSE," ","Part Peak (kWh):") ->  | J16: =IF(VLOOKUP($B$6,Rates!A:AA,9,0)=FALSE," ","Part Peak (kWh):") ->  | P16: (E19 Only) Voluntary or Mandatory Service: | R16: Voluntary
F17: =IF(VLOOKUP($B$6,Rates!A:AA,7,0)=FALSE," ","Off Peak (kWh):") ->  | J17: =IF(VLOOKUP($B$6,Rates!A:AA,10,0)=FALSE," ","Off Peak (kWh):") -> 
F18: =IF(VLOOKUP($B$6,Rates!A:AA,17,0)=FALSE," ","Summer Connected Load:") ->  | J18: =IF(VLOOKUP($B$6,Rates!A:AA,18,0)=FALSE," ","Winter Connected Load:") -> 
B20: Total Cost Summary | J20: Compare Options (select two from the orange menus below)
B21: Service Options | F21: Total Charges | L21: SVCE GreenStart (50%) | N21: PG&E Standard | P21: Difference
B22: SVCE GreenStart (50%) | F22: =SUM(F32:L32) -> 0 | J22: Total Cost | L22: =VLOOKUP(L21,$B$21:$F$26,5,FALSE) -> 0 | N22: =VLOOKUP(N21,$B$21:$F$26,5,FALSE) -> 0 | P22: =ABS(L22-N22) -> 0
B23: PG&E Standard | F23: =SUM(F33:L33) -> 0 | J23: Renewable % | L23: =VLOOKUP(L21,$B$40:$J$45,5,FALSE) -> 0.5 | N23: =VLOOKUP(N21,$B$40:$J$45,5,FALSE) -> 0.3 | P23: =ABS(L23-N23) -> 0.2
B24: SVCE GreenPrime (100%) | F24: =SUM(F34:L34) -> 0 | J24: =IF(J$39="lbs. (pounds)","Estimated Emissions (lbs.)","Estimated Emissions (MT)") -> Estimated Emissions (lbs.) | L24: =VLOOKUP(L21,$B$40:$J$45,9,FALSE) -> 0 | N24: =VLOOKUP(N21,$B$40:$J$45,9,FALSE) -> 0 | P24: =ABS(L24-N24) -> 0
B25: PG&E Solar Choice (50%) | F25: =SUM(F35:L35) -> 0
B26: PG&E Solar Choice (100%) | F26: =SUM(F36:L36) -> 0
J27: =IF(Calculation!B31<>0,"CARE Program Adjustment:","") ->  | L27: =IF(R14="Yes",SUM(CARE!D3:D7),"") -> 
J28: =IF(B6=Rates!A56,"Comparisons of streetlight rates (LS-1, LS-2, LS-3) are for electricity only, and do not include lamp fees imposed by PG&E.","") -> 
B29: Additional Billing Details
B30: Breakdown of Charges by Service
B31: Service Options | F31: PG&E Delivery Cost | H31: Generation Cost | J31: PCIA (PG&E Fee) | L31: Franchise Fee
B32: SVCE GreenStart (50%) | F32: =F33 -> 0 | H32: =Calculation!B37 -> 0 | J32: =Calculation!B38 -> 0 | L32: =Calculation!B39 -> 0
B33: PG&E Standard | F33: =Calculation!B34 -> 0 | H33: =Calculation!B33 -> 0 | J33: 0 | L33: 0
B34: SVCE GreenPrime (100%) | F34: =F33 -> 0 | H34: =H32+Calculation!B43 -> 0 | J34: =J32 -> 0 | L34: =L32 -> 0
B35: PG&E Solar Choice (50%) | F35: =F33 -> 0 | H35: =H33+Calculation!B42/2 -> 0 | J35: =J36/2 -> 0 | L35: 0
B36: PG&E Solar Choice (100%) | F36: =F33 -> 0 | H36: =H33+Calculation!B42 -> 0 | J36: =IF(L26="Pre-2009",0,Calculation!B41) -> 0 | L36: 0
B39: Breakdown of Energy Content | H39: Show emissions using (select): | J39: lbs. (pounds)
B40: Service Options | F40: Renewable Content (% of Total Power Supply) | H40: Emissions Factor (lbs. CO2/MWh)* | J40: Estimated Emissions (lbs. CO2) | L40: Service Description
B41: SVCE GreenStart (50%) | F41: 0.5 | H41: <25 | J41: =IF(J$39="lbs. (pounds)",25*Calculation!E$3/1000,25*Calculation!E$3/1000/2204.6) -> 0 | L41: Basic SVCE service (default)
B42: PG&E Standard | F42: 0.3 | H42: 405 | J42: =IF(J$39="lbs. (pounds)",H42*Calculation!E$3/1000,H42*Calculation!E$3/1000/2204.6) -> 0 | L42: Basic PG&E service (opt out)
B43: SVCE GreenPrime (100%) | F43: 1 | H43: 0 | J43: =IF(J$39="lbs. (pounds)",H43*Calculation!E$3/1000,H43*Calculation!E$3/1000/2204.6) -> 0 | L43: Optional 100% renewable SVCE service
B44: PG&E Solar Choice (50%) | F44: 0.65 | H44: =AVERAGE(H42,H45) -> 202.5 | J44: =IF(J$39="lbs. (pounds)",H44*Calculation!E$3/1000,H44*Calculation!E$3/1000/2204.6) -> 0 | L44: Optional 50% solar PG&E service
B45: PG&E Solar Choice (100%) | F45: 1 | H45: 0 | J45: =IF(J$39="lbs. (pounds)",H45*Calculation!E$3/1000,H45*Calculation!E$3/1000/2204.6) -> 0 | L45: Optional 100% solar PG&E service
B46: *As reported to the California Energy Commission’s Power Source Disclosure Program, reflecting PG&E's most currently available emission factor (for CY 2015), as verified by The Climate Registry. PG&E CY 2016 data is subject to an independent audit and verification that will not be completed until October 1, 2017. Silicon Valley Clean Energy’s generation data is forecast for 2017 and may be subject to change. Actual generation data will be reported to the California Energy Commission in 2018.
B49: Glossary of Terms
B51: Required Account Data Terms
B52: Your Rate: | F52: The PG&E rate selected for billing your account. Different rates utilize different usage data to determine your charges due. Selecting a rate will highlight required usage.
B53: Non Time-of-Use Usage Data: | F53: Basic and older electric rates may charge you based on total usage, regardless of what time of day it is used. This usage may still be divided seasonally as defined by PG&E.
B54: Time-of-Use Usage Data: | F54: Usage data which is specific to certain times of the day. This is divided into peak, partial peak, and off peak periods and is also divided seasonally.
B55: Demand-Based Usage Data: | F55: Large business customers are also assessed demand charges, which are based on their maximum use of electricity during certain points of a billing cycle.
B57: Optional Account Data Terms
B58: Billing Period Length: | F58: Certain PG&E delivery charges are affected by the length of your billing period. If the data reviewed is for a longer or shorter period than indicated, it can be adjusted.
B59: PCIA Vintage: | F59: PG&E assesses fees to customers which choose a provider other than PG&E. This fee is based on when your address began taking SVCE service and your rate class.
B60: Franchise Fee Exemption: | F60: Customers which are a subdivision of the State of California (such as state facilities, city facilities, school districts) are exempt from the Franchise Fee Surcharge.
B61: Phase: | F61: Some small business customers may be either single-phase or poly-phase, impacting monthly PG&E meter charges.
B62: CARE Discount: | F62: CARE is a low-income discount available to qualifying residential households; certain businesses may (rarely) also qualify. Available to PG&E and SVCE customers equally.
B63: Medical Baseline Exemption: | F63: Customers with needed medical equipment may receive an adjustment to their tiered delivery rates. Available to PG&E and SVCE customers equally.
B64: E19 Voluntary/Mandatory: | F64: Customers may participate in the E19 on a voluntary or required basis due to their high usage. Voluntary assignment is denoted by the letter "V" (e.g. E19SV)

Sheet Calculation (hidden)
A1: Normalized PCIA | B1: ='Cost Comparison'!R11 -> 2017 | G1: PCIA Charge | H1: =IFERROR(B2*E3,0) -> 0
A2: PCIA Rate | B2: =VLOOKUP(E2,'PCIA FF'!A2:T12,MATCH(B1,'PCIA FF'!1:1,0),FALSE) -> 0.02199 | D2: PCIA Class | E2: =VLOOKUP('Cost Comparison'!B6,Rates!$A$74:$S$104,19,0) -> A1
A3: FF Rate | B3: =IF('Cost Comparison'!$R$12="No",VLOOKUP(E2,'PCIA FF'!A14:T24,MATCH(B1,'PCIA FF'!14:14,0),FALSE),0) -> 0.00065 | D3: Usage Eligible | E3: =SUMIF(C7:C15,"<>FALSE",B7:B15) -> 0 | G3: FF Charge | H3: =E3*B3 -> 0
A5: Bundled Rate Components
B6: kWh/KW | C6: Bundled Rate | D6: Bundled Charge | E6: PG&E Gen Rate | F6: PG&E Gen Charge | G6: SVCEA Gen Rate | H6: SVCEA Gen Charge
A7: Non-sea/non-tou | B7: ='Cost Comparison'!D10 -> 0 | C7: =VLOOKUP('Cost Comparison'!$B$6,Rates!$A$2:$W$33,2,0) -> FALSE | D7: =B7*C7 -> 0 | E7: =VLOOKUP('Cost Comparison'!$B$6,Rates!$A$38:$W$71,2,0) -> FALSE | F7: =B7*E7 -> 0 | G7: =VLOOKUP('Cost Comparison'!$B$6,Rates!$A$73:$W$106,2,0) -> FALSE | H7: =G7*B7 -> 0
A8: Summer seasonal | B8: ='Cost Comparison'!H11 -> 0 | C8: =VLOOKUP('Cost Comparison'!$B$6,Rates!$A$2:$W$33,3,0) -> 0.2473 | D8: 0 | E8: =VLOOKUP('Cost Comparison'!$B$6,Rates!$A$38:$W$71,3,0) -> 0.11518 | F8: 0 | G8: =VLOOKUP('Cost Comparison'!$B$6,Rates!$A$73:$W$106,3,0) -> 0.09139 | H8: 0
A9: Winter Seasonal | B9: ='Cost Comparison'!L11 -> 0 | C9: =VLOOKUP('Cost Comparison'!$B$6,Rates!$A$2:$W$33,4,0) -> 0.1927 | D9: 0 | E9: =VLOOKUP('Cost Comparison'!$B$6,Rates!$A$38:$W$71,4,0) -> 0.07924 | F9: 0 | G9: =VLOOKUP('Cost Comparison'!$B$6,Rates!$A$73:$W$106,4,0) -> 0.05581 | H9: 0
A10: Summer Peak | B10: ='Cost Comparison'!H15 -> 0 | C10: =VLOOKUP('Cost Comparison'!$B$6,Rates!$A$2:$W$33,5,0) -> FALSE | D10: 0 | E10: =VLOOKUP('Cost Comparison'!$B$6,Rates!$A$38:$W$71,5,0) -> FALSE | F10: 0 | G10: =VLOOKUP('Cost Comparison'!$B$6,Rates!$A$73:$W$106,5,0) -> FALSE | H10: 0
A11: Summer Part | B11: ='Cost Comparison'!H16 -> 0 | C11: =VLOOKUP('Cost Comparison'!$B$6,Rates!$A$2:$W$33,6,0) -> FALSE | D11: 0 | E11: =VLOOKUP('Cost Comparison'!$B$6,Rates!$A$38:$W$71,6,0) -> FALSE | F11: 0 | G11: =VLOOKUP('Cost Comparison'!$B$6,Rates!$A$73:$W$106,6,0) -> FALSE | H11: 0
A12: Summer Off | B12: ='Cost Comparison'!H17 -> 0 | C12: =VLOOKUP('Cost Comparison'!$B$6,Rates!$A$2:$W$33,7,0) -> FALSE | D12: 0 | E12: =VLOOKUP('Cost Comparison'!$B$6,Rates!$A$38:$W$71,7,0) -> FALSE | F12: 0 | G12: =VLOOKUP('Cost Comparison'!$B$6,Rates!$A$73:$W$106,7,0) -> FALSE | H12: 0
A13: Winter Peak | B13: ='Cost Comparison'!L15 -> 0 | C13: =VLOOKUP('Cost Comparison'!$B$6,Rates!$A$2:$W$33,8,0) -> FALSE | D13: 0 | E13: =VLOOKUP('Cost Comparison'!$B$6,Rates!$A$38:$W$71,8,0) -> FALSE | F13: 0 | G13: =VLOOKUP('Cost Comparison'!$B$6,Rates!$A$73:$W$106,8,0) -> FALSE | H13: 0
A14: Winter Part | B14: ='Cost Comparison'!L16 -> 0 | C14: =VLOOKUP('Cost Comparison'!$B$6,Rates!$A$2:$W$33,9,0) -> FALSE | D14: 0 | E14: =VLOOKUP('Cost Comparison'!$B$6,Rates!$A$38:$W$71,9,0) -> FALSE | F14: 0 | G14: =VLOOKUP('Cost Comparison'!$B$6,Rates!$A$73:$W$106,9,0) -> FALSE | H14: 0
A15: Winter Off | B15: ='Cost Comparison'!L17 -> 0 | C15: =VLOOKUP('Cost Comparison'!$B$6,Rates!$A$2:$W$33,10,0) -> FALSE | D15: 0 | E15: =VLOOKUP('Cost Comparison'!$B$6,Rates!$A$38:$W$71,10,0) -> FALSE | F15: 0 | G15: =VLOOKUP('Cost Comparison'!$B$6,Rates!$A$73:$W$106,10,0) -> FALSE | H15: 0
A16: Demand Summer Peak | B16: ='Cost Comparison'!H12 -> 0 | C16: =VLOOKUP('Cost Comparison'!$B$6,Rates!$A$2:$W$33,11,0) -> FALSE | D16: =IF(B16=0,0,B16*C16*'Cost Comparison'!$H$10/SUM('Cost Comparison'!H10+'Cost Comparison'!L10)) -> 0 | E16: =VLOOKUP('Cost Comparison'!$B$6,Rates!$A$38:$W$71,11,0) -> FALSE | F16: =IF(E16=FALSE,0,B16*E16*'Cost Comparison'!$H$10/SUM('Cost Comparison'!$H$10+'Cost Comparison'!$L$10)) -> 0 | G16: =VLOOKUP('Cost Comparison'!$B$6,Rates!$A$73:$W$106,11,0) -> FALSE | H16: =IF(G16=FALSE,0,B16*G16*'Cost Comparison'!$H$10/SUM('Cost Comparison'!$H$10+'Cost Comparison'!$L$10)) -> 0
A17: Demand Summer Part | B17: ='Cost Comparison'!H13 -> 0 | C17: =VLOOKUP('Cost Comparison'!$B$6,Rates!$A$2:$W$33,12,0) -> FALSE | D17: =IF(B17=0,0,B17*C17*'Cost Comparison'!H10/SUM('Cost Comparison'!H10+'Cost Comparison'!L10)) -> 0 | E17: =VLOOKUP('Cost Comparison'!$B$6,Rates!$A$38:$W$71,12,0) -> FALSE | F17: =IF(E17=FALSE,0,B17*E17*'Cost Comparison'!$H$10/SUM('Cost Comparison'!$H$10+'Cost Comparison'!$L$10)) -> 0 | G17: =VLOOKUP('Cost Comparison'!$B$6,Rates!$A$73:$W$106,12,0) -> FALSE | H17: =IF(G17=FALSE,0,B17*G17*'Cost Comparison'!$H$10/SUM('Cost Comparison'!$H$10+'Cost Comparison'!$L$10)) -> 0
A18: Demand Summer Max | B18: ='Cost Comparison'!H14 -> 0 | C18: =VLOOKUP('Cost Comparison'!$B$6,Rates!$A$2:$W$33,13,0) -> FALSE | D18: =IF(B18=0,0,B18*C18*'Cost Comparison'!H10/SUM('Cost Comparison'!H10+'Cost Comparison'!L10)) -> 0 | E18: =VLOOKUP('Cost Comparison'!$B$6,Rates!$A$38:$W$71,13,0) -> FALSE | F18: =IF(E18=FALSE,0,B18*E18*'Cost Comparison'!$H$10/SUM('Cost Comparison'!$H$10+'Cost Comparison'!$L$10)) -> 0 | G18: =VLOOKUP('Cost Comparison'!$B$6,Rates!$A$73:$W$106,13,0) -> FALSE | H18: =IF(G18=FALSE,0,B18*G18*'Cost Comparison'!$H$10/SUM('Cost Comparison'!$H$10+'Cost Comparison'!$L$10)) -> 0
A19: Demand Winter Peak | B19: ='Cost Comparison'!L12 -> 0 | C19: =VLOOKUP('Cost Comparison'!$B$6,Rates!$A$2:$W$33,14,0) -> FALSE | D19: =IF(B19=0,0,B19*C19*'Cost Comparison'!L10/SUM('Cost Comparison'!L10+'Cost Comparison'!H10)) -> 0 | E19: =VLOOKUP('Cost Comparison'!$B$6,Rates!$A$38:$W$71,14,0) -> FALSE | F19: =IF(E19=FALSE,0,B19*E19*'Cost Comparison'!$L$10/SUM('Cost Comparison'!$H$10+'Cost Comparison'!$L$10)) -> 0 | G19: =VLOOKUP('Cost Comparison'!$B$6,Rates!$A$73:$W$106,14,0) -> FALSE | H19: =IF(G19=FALSE,0,B19*G19*'Cost Comparison'!$L$10/SUM('Cost Comparison'!$H$10+'Cost Comparison'!$L$10)) -> 0
A20: Demand Winter Part | B20: ='Cost Comparison'!L13 -> 0 | C20: =VLOOKUP('Cost Comparison'!$B$6,Rates!$A$2:$W$33,15,0) -> FALSE | D20: =IF(B20=0,0,B20*C20*'Cost Comparison'!L10/SUM('Cost Comparison'!L10+'Cost Comparison'!H10)) -> 0 | E20: =VLOOKUP('Cost Comparison'!$B$6,Rates!$A$38:$W$71,15,0) -> FALSE | F20: =IF(E20=FALSE,0,B20*E20*'Cost Comparison'!$L$10/SUM('Cost Comparison'!$H$10+'Cost Comparison'!$L$10)) -> 0 | G20: =VLOOKUP('Cost Comparison'!$B$6,Rates!$A$73:$W$106,15,0) -> FALSE | H20: =IF(G20=FALSE,0,B20*G20*'Cost Comparison'!$L$10/SUM('Cost Comparison'!$H$10+'Cost Comparison'!$L$10)) -> 0
A21: Demand Winter Max | B21: ='Cost Comparison'!L14 -> 0 | C21: =VLOOKUP('Cost Comparison'!$B$6,Rates!$A$2:$W$33,16,0) -> FALSE | D21: =IF(B21=0,0,B21*C21*'Cost Comparison'!L10/SUM('Cost Comparison'!L10+'Cost Comparison'!H10)) -> 0 | E21: =VLOOKUP('Cost Comparison'!$B$6,Rates!$A$38:$W$71,16,0) -> FALSE | F21: =IF(E21=FALSE,0,B21*E21*'Cost Comparison'!$L$10/SUM('Cost Comparison'!$H$10+'Cost Comparison'!$L$10)) -> 0 | G21: =VLOOKUP('Cost Comparison'!$B$6,Rates!$A$73:$W$106,16,0) -> FALSE | H21: =IF(G21=FALSE,0,B21*G21*'Cost Comparison'!$L$10/SUM('Cost Comparison'!$H$10+'Cost Comparison'!$L$10)) -> 0
A22: Conn. Load Summer | B22: ='Cost Comparison'!D14 -> 0 | C22: =VLOOKUP('Cost Comparison'!$B$6,Rates!$A$2:$W$33,17,0) -> FALSE | D22: 0 | E22: =VLOOKUP('Cost Comparison'!$B$6,Rates!$A$38:$W$71,17,0) -> FALSE | F22: 0 | G22: =VLOOKUP('Cost Comparison'!$B$6,Rates!$A$73:$W$106,17,0) -> FALSE | H22: 0
A23: Conn. Load Winter | B23: ='Cost Comparison'!D15 -> 0 | C23: =VLOOKUP('Cost Comparison'!$B$6,Rates!$A$2:$W$33,18,0) -> FALSE | D23: 0 | E23: =VLOOKUP('Cost Comparison'!$B$6,Rates!$A$38:$W$71,18,0) -> FALSE | F23: 0 | G23: =VLOOKUP('Cost Comparison'!$B$6,Rates!$A$73:$W$106,18,0) -> FALSE | H23: 0
A24: =Rates!S2 -> Single-phase | B24: =IF(A24='Cost Comparison'!$R$13,SUM('Cost Comparison'!$L$10+'Cost Comparison'!$H$10,0)) -> 0 | C24: =VLOOKUP('Cost Comparison'!$B$6,Rates!$A$2:$W$33,19,0) -> 0.32854 | D24: 0
A25: =Rates!T2 -> Poly-phase | B25: =IF(A25='Cost Comparison'!$R$13,'Cost Comparison'!$R$10,0) -> 0 | C25: =VLOOKUP('Cost Comparison'!$B$6,Rates!$A$2:$W$33,20,0) -> 0.65708 | D25: 0
A26: Voluntary | B26: =IF(E2="E19",IF('Cost Comparison'!R16="Voluntary",'Cost Comparison'!H10+'Cost Comparison'!L10,0),0) -> 0 | C26: =VLOOKUP('Cost Comparison'!$B$6,Rates!$A$2:$W$33,21,0) -> FALSE | D26: 0
A27: Mandatory | B27: =IF(E2="E19",IF('Cost Comparison'!R16="Mandatory",'Cost Comparison'!R10,0),0) -> 0 | C27: =VLOOKUP('Cost Comparison'!$B$6,Rates!$A$2:$W$33,22,0) -> FALSE | D27: 0
A28: Total | D28: =SUM(D7:D27) -> 0 | F28: =SUM(F7:F25) -> 0 | H28: =SUM(H7:H25) -> 0
A30: Raw Total | B30: =D28 -> 0
A31: CARE Discount | B31: =SUM(CARE!D3:D7) -> 0
A32: PG&E Bundled Total | B32: =B30-B31 -> 0 | E32: GreenPrime Rate | F32: 0.008
A33: PG&E Gen | B33: =F28 -> 0
A34: PG&E T&D | B34: =B32-B33 -> 0
A35: SVCEA Gen Only | B35: =H28 -> 0
A36: SVCEA NEM Bonus | B36: =F37*F32 -> 0
A37: SVCEA Gen | B37: =SUM(B35:B36) -> 0 | E37: Eligible NEM Bonus Usage | F37: =SUMIFS(B8:B15,B8:B15,"<0",C8:C15,"<>FALSE") -> 0
A38: PCIA | B38: =H1 -> 0
A39: FF | B39: =H3 -> 0
A40: Solar Choice Premium | B40: =E3*VLOOKUP(E2,'PCIA FF'!A27:B36,2,FALSE) -> 0
A41: Solar Choice PCIA | B41: =VLOOKUP(Calculation!E2,'PCIA FF'!A1:T11,MATCH('Cost Comparison'!R11,'PCIA FF'!1:1,0),FALSE)*E3 -> 0
A42: … without PCIA | B42: =B40-B41 -> 0
A43: Deep Green Premium | B43: =E3*F32 -> 0
A44: Local Sol Gen Rate | B44: =SUM(E3*F33,H16:H23) -> 0

Sheet Rates (hidden)
A1: Bundled Charges | C1: Flat Rate Options | E1: TOU Rate Options | K1: Demand Charges | S1: Per Meter/Day
A2: Rate Schedules | B2: All Usage | C2: Summer | D2: Winter | E2: Summer Peak | F2: Summer Partial Peak | G2: Summer Off Peak | H2: Winter Peak | I2: Winter Partial Peak | J2: Winter Off Peak | K2: Summer Peak | L2: Summer Partial Peak | M2: Summer Maximum | N2: Winter Off Peak | O2: Winter Partial | P2: Winter Maximum | Q2: Conn. Load Sum. | R2: Conn. Load Win. | S2: Single-phase | T2: Poly-phase | U2: Voluntary | V2: Mandatory
A3: A1 (COM-1) | B3: FALSE | C3: 0.2473 | D3: 0.1927 | E3: FALSE | F3: FALSE | G3: FALSE | H3: FALSE | I3: FALSE | J3: FALSE | K3: FALSE | L3: FALSE | M3: FALSE | N3: FALSE | O3: FALSE | P3: FALSE | Q3: FALSE | R3: FALSE | S3: 0.32854 | T3: 0.65708 | U3: FALSE | V3: FALSE
A4: A1X (COM-1 TOU) | B4: FALSE | C4: FALSE | D4: FALSE | E4: 0.26298 | F4: 0.23933 | G4: 0.21197 | H4: FALSE | I4: 0.22047 | J4: 0.19956 | K4: FALSE | L4: FALSE | M4: FALSE | N4: FALSE | O4: FALSE | P4: FALSE | Q4: FALSE | R4: FALSE | S4: =S3 -> 0.32854 | T4: =T3 -> 0.65708 | U4: FALSE | V4: FALSE
A5: A6 (COM-6) | B5: FALSE | C5: FALSE | D5: FALSE | E5: 0.55478 | F5: 0.25796 | G5: 0.18638 | H5: FALSE | I5: 0.20442 | J5: 0.18618 | K5: FALSE | L5: FALSE | M5: FALSE | N5: FALSE | O5: FALSE | P5: FALSE | Q5: FALSE | R5: FALSE | S5: =S3 -> 0.32854 | T5: =T3 -> 0.65708 | U5: FALSE | V5: FALSE
A6: A10A (COM-10) | B6: FALSE | C6: 0.16286 | D6: 0.12626 | E6: FALSE | F6: FALSE | G6: FALSE | H6: FALSE | I6: FALSE | J6: FALSE | K6: FALSE | L6: FALSE | M6: 18.26 | N6: FALSE | O6: FALSE | P6: 10.93 | Q6: FALSE | R6: FALSE | S6: 4.59959 | T6: =S6 -> 4.59959 | U6: FALSE | V6: FALSE
A7: A10B (COM-10-TOU) | B7: FALSE | C7: FALSE | D7: FALSE | E7: 0.21766 | F7: 0.16253 | G7: 0.13446 | H7: FALSE | I7: 0.13435 | J7: 0.11729 | K7: FALSE | L7: FALSE | M7: =M6 -> 18.26 | N7: FALSE | O7: FALSE | P7: =P6 -> 10.93 | Q7: FALSE | R7: FALSE | S7: =S6 -> 4.59959 | T7: =T6 -> 4.59959 | U7: FALSE | V7: FALSE
A8: E19S (COM-19S) | B8: FALSE | C8: FALSE | D8: FALSE | E8: 0.15178 | F8: 0.11127 | G8: 0.08445 | H8: FALSE | I8: 0.10573 | J8: 0.09111 | K8: 18.64 | L8: 5.18 | M8: 17.56 | N8: FALSE | O8: 0.12 | P8: 17.56 | Q8: FALSE | R8: FALSE | S8: FALSE | T8: FALSE | U8: =S6 -> 4.59959 | V8: 19.71253
A9: E19P (COM-19P) | B9: FALSE | C9: FALSE | D9: FALSE | E9: 0.14165 | F9: 0.10327 | G9: 0.0786 | H9: FALSE | I9: 0.09809 | J9: 0.08469 | K9: 16.6 | L9: 4.53 | M9: 14.4 | N9: FALSE | O9: 0.15 | P9: 14.4 | Q9: FALSE | R9: FALSE | S9: FALSE | T9: FALSE | U9: =U8 -> 4.59959 | V9: =V8 -> 19.71253
A10: E19T (COM-19T) | B10: FALSE | C10: FALSE | D10: FALSE | E10: 0.10559 | F10: 0.09298 | G10: 0.07631 | H10: FALSE | I10: 0.09497 | J10: 0.08216 | K10: 12.42 | L10: 3.11 | M10: 9.13 | N10: FALSE | O10: 0 | P10: 9.13 | Q10: FALSE | R10: FALSE | S10: FALSE | T10: FALSE | U10: =U7 -> FALSE | V10: =V7 -> FALSE
A11: E19SR (COM-19SR) | B11: FALSE | C11: FALSE | D11: FALSE | E11: 0.33953 | F11: 0.1593 | G11: 0.08445 | H11: FALSE | I11: 0.10622 | J11: 0.09111 | K11: 1.5 | L11: 0.51 | M11: 17.56 | N11: FALSE | O11: 0.03 | P11: 17.56 | Q11: FALSE | R11: FALSE | S11: FALSE | T11: FALSE | U11: =U8 -> 4.59959 | V11: =V8 -> 19.71253
A12: E19PR (COM-19PR) | B12: FALSE | C12: FALSE | D12: FALSE | E12: 0.3223 | F12: 0.1482 | G12: 0.0786 | H12: FALSE | I12: 0.09874 | J12: 0.08469 | K12: 1.33 | L12: 0.44 | M12: 14.4 | N12: FALSE | O12: 0.04 | P12: 14.4 | Q12: FALSE | R12: FALSE | S12: FALSE | T12: FALSE | U12: =U9 -> 4.59959 | V12: 32.85421
A13: E19TR (COM-19TR) | B13: FALSE | C13: FALSE | D13: FALSE | E13: 0.27429 | F13: 0.13021 | G13: 0.07631 | H13: FALSE | I13: 0.09497 | J13: 0.08216 | K13: 0 | L13: 0 | M13: 9.13 | N13: FALSE | O13: 0 | P13: 9.13 | Q13: FALSE | R13: FALSE | S13: FALSE | T13: FALSE | U13: =U12 -> 4.59959 | V13: 59.13758
A14: E20S (COM-20S) | B14: FALSE | C14: FALSE | D14: FALSE | E14: 0.14244 | F14: 0.10559 | G14: 0.08029 | H14: FALSE | I14: 0.10024 | J14: 0.08653 | K14: 18.05 | L14: 5.01 | M14: 17.44 | N14: FALSE | O14: 0.05 | P14: 17.44 | Q14: FALSE | R14: FALSE | S14: 39.42505 | T14: =S14 -> 39.42505 | U14: FALSE | V14: FALSE
A15: E20P (COM-20P) | B15: FALSE | C15: FALSE | D15: FALSE | E15: 0.14393 | F15: 0.10331 | G15: 0.07833 | H15: FALSE | I15: 0.09796 | J15: 0.08447 | K15: 19.26 | L15: 5.13 | M15: 15.09 | N15: FALSE | O15: 0.12 | P15: 15.09 | Q15: FALSE | R15: FALSE | S15: 49.28131 | T15: =S15 -> 49.28131 | U15: FALSE | V15: FALSE
A16: E20T (COM-20T) | B16: FALSE | C16: FALSE | D16: FALSE | E16: 0.1008 | F16: 0.08857 | G16: 0.07238 | H16: FALSE | I16: 0.09049 | J16: 0.07806 | K16: 15.89 | L16: 3.79 | M16: 8.31 | N16: FALSE | O16: 0 | P16: 8.31 | Q16: FALSE | R16: FALSE | S16: 65.70842 | T16: 65.70842 | U16: FALSE | V16: FALSE
A17: E20SR (COM-20SR) | B17: FALSE | C17: FALSE | D17: FALSE | E17: 0.31035 | F17: 0.15061 | G17: 0.08029 | H17: FALSE | I17: 0.10043 | J17: 0.08653 | K17: 1.45 | L17: 0.5 | M17: 17.44 | N17: FALSE | O17: 0.01 | P17: 17.44 | Q17: FALSE | R17: FALSE | S17: =S14 -> 39.42505 | T17: 39.42505 | U17: FALSE | V17: FALSE
A18: E20PR (COM-20PR) | B18: FALSE | C18: FALSE | D18: FALSE | E18: 0.32678 | F18: 0.1467 | G18: 0.07833 | H18: FALSE | I18: 0.09843 | J18: 0.08447 | K18: 1.46 | L18: 0.49 | M18: 15.09 | N18: FALSE | O18: 0.03 | P18: 15.09 | Q18: FALSE | R18: FALSE | S18: =S15 -> 49.28131 | T18: 49.28131 | U18: FALSE | V18: FALSE
A19: E20TR (COM-20TR) | B19: FALSE | C19: FALSE | D19: FALSE | E19: 0.27137 | F19: 0.12456 | G19: 0.07238 | H19: FALSE | I19: 0.09049 | J19: 0.07806 | K19: 0 | L19: 0 | M19: 8.31 | N19: FALSE | O19: FALSE | P19: 8.31 | Q19: FALSE | R19: FALSE | S19: 65.70842 | T19: 65.70842 | U19: FALSE | V19: FALSE
A20: LS-1, LS-2, LS-3 (SL-1) | B20: 0.15874 | C20: FALSE | D20: FALSE | E20: FALSE | F20: FALSE | G20: FALSE | H20: FALSE | I20: FALSE | J20: FALSE | K20: FALSE | L20: FALSE | M20: FALSE | N20: FALSE | O20: FALSE | P20: FALSE | Q20: FALSE | R20: FALSE | S20: FALSE | T20: FALSE | U20: FALSE | V20: FALSE
A21: TC-1 | B21: 0.18432 | C21: FALSE | D21: FALSE | E21: FALSE | F21: FALSE | G21: FALSE | H21: FALSE | I21: FALSE | J21: FALSE | K21: FALSE | L21: FALSE | M21: FALSE | N21: FALSE | O21: FALSE | P21: FALSE | Q21: FALSE | R21: FALSE | S21: 0.32854 | T21: 0.32854 | U21: FALSE | V21: FALSE
A22: AG-1A | B22: FALSE | C22: 0.27939 | D22: 0.21527 | E22: FALSE | F22: FALSE | G22: FALSE | H22: FALSE | I22: FALSE | J22: FALSE | K22: FALSE | L22: FALSE | M22: FALSE | N22: FALSE | O22: FALSE | P22: FALSE | Q22: 7.96 | R22: 1.52 | S22: 0.574 | T22: =S22 -> 0.574 | U22: FALSE | V22: FALSE
A23: AG-1B | B23: FALSE | C23: 0.23904 | D23: 0.18603 | E23: FALSE | F23: FALSE | G23: FALSE | H23: FALSE | I23: FALSE | J23: FALSE | K23: FALSE | L23: FALSE | M23: 11.63 | N23: FALSE | O23: FALSE | P23: 2.34 | Q23: FALSE | R23: FALSE | S23: 0.76313 | T23: =S23 -> 0.76313 | U23: FALSE | V23: FALSE
A24: AG-4A | B24: FALSE | C24: FALSE | D24: FALSE | E24: 0.44481 | F24: FALSE | G24: 0.19503 | H24: FALSE | I24: 0.20179 | J24: 0.16356 | K24: FALSE | L24: FALSE | M24: FALSE | N24: FALSE | O24: FALSE | P24: FALSE | Q24: 8.12 | R24: 1.23 | S24: =0.574+0.22341 -> 0.79741 | T24: =S24 -> 0.79741 | U24: FALSE | V24: FALSE
A25: AG-4B | B25: FALSE | C25: FALSE | D25: FALSE | E25: 0.2915 | F25: FALSE | G25: 0.15746 | H25: FALSE | I25: 0.15783 | J25: 0.13306 | K25: 5.17 | L25: FALSE | M25: 9.79 | N25: FALSE | O25: FALSE | P25: 2.26 | Q25: FALSE | R25: FALSE | S25: =0.76313+0.19713 -> 0.96026 | T25: 0.96026 | U25: FALSE | V25: FALSE
A26: AG-4C | B26: FALSE | C26: FALSE | D26: FALSE | E26: 0.26604 | F26: 0.15676 | G26: 0.11857 | H26: FALSE | I26: 0.13113 | J26: 0.11411 | K26: 12.1 | L26: 2.31 | M26: 4.96 | N26: FALSE | O26: 0.054 | P26: 2.4 | Q26: FALSE | R26: FALSE | S26: =2.15003+0.19713 -> 2.34716 | T26: 2.34716 | U26: FALSE | V26: FALSE
A27: AG-5A, AG-5D | B27: FALSE | C27: FALSE | D27: FALSE | E27: 0.30744 | F27: FALSE | G27: 0.15756 | H27: FALSE | I27: 0.16587 | J27: 0.14048 | K27: FALSE | L27: FALSE | M27: FALSE | N27: FALSE | O27: FALSE | P27: FALSE | Q27: 11.77 | R27: 2.19 | S27: =S24 -> 0.79741 | T27: 0.79741 | U27: FALSE | V27: FALSE
A28: AG-5B, AG-5E | B28: FALSE | C28: FALSE | D28: FALSE | E28: 0.2099 | F28: FALSE | G28: 0.09189 | H28: FALSE | I28: 0.11199 | J28: 0.08358 | K28: 9.85 | L28: FALSE | M28: 15.37 | N28: FALSE | O28: FALSE | P28: 5.95 | Q28: FALSE | R28: FALSE | S28: =1.19446+0.19713 -> 1.39159 | T28: 1.39159 | U28: FALSE | V28: FALSE
A29: AG-5C, AG-5F | B29: FALSE | C29: FALSE | D29: FALSE | E29: 0.16234 | F29: 0.11173 | G29: 0.09289 | H29: FALSE | I29: 0.09858 | J29: 0.08997 | K29: 16.62 | L29: 3.44 | M29: 5.95 | N29: FALSE | O29: 0.89 | P29: 3.71 | Q29: FALSE | R29: FALSE | S29: =5.30871+0.19713 -> 5.50584 | T29: 5.50584 | U29: FALSE | V29: FALSE
A30: AG-RA | B30: FALSE | C30: FALSE | D30: FALSE | E30: 0.52724 | F30: FALSE | G30: 0.18508 | H30: FALSE | I30: 0.18868 | J30: 0.15508 | K30: FALSE | L30: FALSE | M30: FALSE | N30: FALSE | O30: FALSE | P30: FALSE | Q30: 7.08 | R30: 1.16 | S30: =S24 -> 0.79741 | T30: 0.79741 | U30: FALSE | V30: FALSE
A31: AG-RB | B31: FALSE | C31: FALSE | D31: FALSE | E31: 0.47501 | F31: FALSE | G31: 0.17492 | H31: FALSE | I31: 0.16422 | J31: 0.1359 | K31: 3.69 | L31: FALSE | M31: 9.59 | N31: FALSE | O31: FALSE | P31: 1.93 | Q31: FALSE | R31: FALSE | S31: =S25 -> 0.96026 | T31: 0.96026 | U31: FALSE | V31: FALSE
A32: AG-VA | B32: FALSE | C32: FALSE | D32: FALSE | E32: 0.49261 | F32: FALSE | G32: 0.18195 | H32: FALSE | I32: 0.18995 | J32: 0.15563 | K32: FALSE | L32: FALSE | M32: FALSE | N32: FALSE | O32: FALSE | P32: FALSE | Q32: 7.1 | R32: 1.2 | S32: =S30 -> 0.79741 | T32: 0.79741 | U32: FALSE | V32: FALSE
A33: AG-VB | B33: FALSE | C33: FALSE | D33: FALSE | E33: 0.44032 | F33: FALSE | G33: 0.17006 | H33: FALSE | I33: 0.16158 | J33: 0.13421 | K33: 3.66 | L33: FALSE | M33: 9.65 | N33: FALSE | O33: FALSE | P33: 1.91 | Q33: FALSE | R33: FALSE | S33: =S31 -> 0.96026 | T33: =T31 -> 0.96026 | U33: FALSE | V33: FALSE
A37: PG&E Generation | C37: Flat Rate Options | E37: TOU Rate Options | K37: Demand Charges
A38: Rate Schedules | B38: =B2 -> All Usage | C38: =C2 -> Summer | D38: Winter | E38: Summer Peak | F38: Summer Partial Peak | G38: Summer Off Peak | H38: Winter Peak | I38: Winter Partial Peak | J38: Winter Off Peak | K38: Summer Peak | L38: Summer Partial Peak | M38: Summer Maximum | N38: Winter Off Peak | O38: Winter Partial | P38: Winter Maximum | Q38: Conn. Load Sum. | R38: Conn. Load Win.
A39: =A3 -> A1 (COM-1) | B39: FALSE | C39: 0.11518 | D39: 0.07924 | E39: FALSE | F39: FALSE | G39: FALSE | H39: FALSE | I39: FALSE | J39: FALSE | K39: FALSE | L39: FALSE | M39: FALSE | N39: FALSE | O39: FALSE | P39: FALSE | Q39: FALSE | R39: FALSE
A40: A1X (COM-1 TOU) | B40: FALSE | C40: FALSE | D40: FALSE | E40: 0.13086 | F40: 0.10721 | G40: 0.07985 | H40: FALSE | I40: 0.10701 | J40: 0.0861 | K40: FALSE | L40: FALSE | M40: FALSE | N40: FALSE | O40: FALSE | P40: FALSE | Q40: FALSE | R40: FALSE
A41: A6 (COM-6) | B41: FALSE | C41: FALSE | D41: FALSE | E41: 0.36486 | F41: 0.12528 | G41: 0.06699 | H41: FALSE | I41: 0.09245 | J41: 0.07496 | K41: FALSE | L41: FALSE | M41: FALSE | N41: FALSE | O41: FALSE | P41: FALSE | Q41: FALSE | R41: FALSE
A42: A10A (COM-10) | B42: FALSE | C42: 0.10492 | D42: 0.08055 | E42: FALSE | F42: FALSE | G42: FALSE | H42: FALSE | I42: FALSE | J42: FALSE | K42: FALSE | L42: FALSE | M42: 4.89 | N42: FALSE | O42: FALSE | P42: FALSE | Q42: FALSE | R42: FALSE
A43: A10B (COM-10-TOU) | B43: FALSE | C43: FALSE | D43: FALSE | E43: 0.15972 | F43: 0.10459 | G43: 0.07652 | H43: FALSE | I43: 0.08864 | J43: 0.07158 | K43: FALSE | L43: FALSE | M43: =M42 -> 4.89 | N43: FALSE | O43: FALSE | P43: FALSE | Q43: FALSE | R43: FALSE
A44: E19S (COM-19S) | B44: FALSE | C44: FALSE | D44: FALSE | E44: 0.12552 | F44: 0.08501 | G44: 0.05819 | H44: FALSE | I44: 0.07947 | J44: 0.06485 | K44: 12.63 | L44: 3.12 | M44: FALSE | N44: FALSE | O44: FALSE | P44: FALSE | Q44: FALSE | R44: FALSE
A45: E19P (COM-19P) | B45: FALSE | C45: FALSE | D45: FALSE | E45: 0.11638 | F45: 0.078 | G45: 0.05333 | H45: FALSE | I45: 0.07282 | J45: 0.05942 | K45: 11.29 | L45: 2.75 | M45: FALSE | N45: FALSE | O45: FALSE | P45: FALSE | Q45: FALSE | R45: FALSE
A46: E19T (COM-19T) | B46: FALSE | C46: FALSE | D46: FALSE | E46: 0.08032 | F46: 0.06771 | G46: 0.05104 | H46: FALSE | I46: 0.0697 | J46: 0.05689 | K46: 12.42 | L46: 3.11 | M46: FALSE | N46: FALSE | O46: FALSE | P46: FALSE | Q46: FALSE | R46: FALSE
A47: =A11 -> E19SR (COM-19SR) | B47: FALSE | C47: FALSE | D47: FALSE | E47: 0.26474 | F47: 0.1157 | G47: 0.05819 | H47: FALSE | I47: 0.07947 | J47: 0.06485 | K47: FALSE | L47: FALSE | M47: FALSE | N47: FALSE | O47: FALSE | P47: FALSE | Q47: FALSE | R47: FALSE
A48: E19PR (COM-19PR) | B48: FALSE | C48: FALSE | D48: FALSE | E48: 0.2499 | F48: 0.10836 | G48: 0.05333 | H48: FALSE | I48: 0.07282 | J48: 0.05942 | K48: FALSE | L48: FALSE | M48: FALSE | N48: FALSE | O48: FALSE | P48: FALSE | Q48: FALSE | R48: FALSE
A49: E19TR (COM-19TR) | B49: FALSE | C49: FALSE | D49: FALSE | E49: 0.24902 | F49: 0.10494 | G49: 0.05104 | H49: FALSE | I49: 0.0697 | J49: 0.05689 | K49: FALSE | L49: FALSE | M49: FALSE | N49: FALSE | O49: FALSE | P49: FALSE | Q49: FALSE | R49: FALSE
A50: =A14 -> E20S (COM-20S) | B50: FALSE | C50: FALSE | D50: FALSE | E50: 0.1167 | F50: 0.07985 | G50: 0.05455 | H50: FALSE | I50: 0.0745 | J50: 0.06079 | K50: 12.24 | L50: 3.02 | M50: FALSE | N50: FALSE | O50: FALSE | P50: FALSE | Q50: FALSE | R50: FALSE
A51: E20P (COM-20P) | B51: FALSE | C51: FALSE | D51: FALSE | E51: 0.11932 | F51: 0.0787 | G51: 0.05372 | H51: FALSE | I51: 0.07335 | J51: 0.05986 | K51: 13.44 | L51: 3.18 | M51: FALSE | N51: FALSE | O51: FALSE | P51: FALSE | Q51: FALSE | R51: FALSE
A52: E20T (COM-20T) | B52: FALSE | C52: FALSE | D52: FALSE | E52: 0.07798 | F52: 0.06575 | G52: 0.04956 | H52: FALSE | I52: 0.06767 | J52: 0.05524 | K52: 15.89 | L52: 3.79 | M52: FALSE | N52: FALSE | O52: FALSE | P52: FALSE | Q52: FALSE | R52: FALSE
A53: E20SR (COM-20SR) | B53: FALSE | C53: FALSE | D53: FALSE | E53: 0.24075 | F53: 0.11029 | G53: 0.05455 | H53: FALSE | I53: 0.0745 | J53: 0.06079 | K53: FALSE | L53: FALSE | M53: FALSE | N53: FALSE | O53: FALSE | P53: FALSE | Q53: FALSE | R53: FALSE
A54: E20PR (COM-20PR) | B54: FALSE | C54: FALSE | D54: FALSE | E54: 0.25759 | F54: 0.10856 | G54: 0.05372 | H54: FALSE | I54: 0.07335 | J54: 0.05986 | K54: FALSE | L54: FALSE | M54: FALSE | N54: FALSE | O54: FALSE | P54: FALSE | Q54: FALSE | R54: FALSE
A55: E20TR (COM-20TR) | B55: FALSE | C55: FALSE | D55: FALSE | E55: 0.24855 | F55: 0.10174 | G55: 0.04956 | H55: FALSE | I55: 0.06767 | J55: 0.05524 | K55: FALSE | L55: FALSE | M55: FALSE | N55: FALSE | O55: FALSE | P55: FALSE | Q55: FALSE | R55: FALSE
A56: LS-1, LS-2, LS-3 (SL-1) | B56: 0.07997 | C56: FALSE | D56: FALSE | E56: FALSE | F56: FALSE | G56: FALSE | H56: FALSE | I56: FALSE | J56: FALSE | K56: FALSE | L56: FALSE | M56: FALSE | N56: FALSE | O56: FALSE | P56: FALSE | Q56: FALSE | R56: FALSE
A57: TC-1 | B57: 0.08678 | C57: FALSE | D57: FALSE | E57: FALSE | F57: FALSE | G57: FALSE | H57: FALSE | I57: FALSE | J57: FALSE | K57: FALSE | L57: FALSE | M57: FALSE | N57: FALSE | O57: FALSE | P57: FALSE | Q57: FALSE | R57: FALSE
A58: AG-1A | B58: FALSE | C58: 0.09932 | D58: 0.07966 | E58: FALSE | F58: FALSE | G58: FALSE | H58: FALSE | I58: FALSE | J58: FALSE | K58: FALSE | L58: FALSE | M58: FALSE | N58: FALSE | O58: FALSE | P58: FALSE | Q58: 1.36 | R58: FALSE
A59: AG-1B | B59: FALSE | C59: 0.10228 | D59: 0.07973 | E59: FALSE | F59: FALSE | G59: FALSE | H59: FALSE | I59: FALSE | J59: FALSE | K59: FALSE | L59: FALSE | M59: 2.04 | N59: FALSE | O59: FALSE | P59: FALSE | Q59: FALSE | R59: FALSE
A60: AG-4A | B60: FALSE | C60: FALSE | D60: FALSE | E60: 0.15892 | F60: FALSE | G60: 0.06861 | H60: FALSE | I60: 0.07271 | J60: 0.06195 | K60: FALSE | L60: FALSE | M60: FALSE | N60: FALSE | O60: FALSE | P60: FALSE | Q60: 1.35 | R60: FALSE
A61: AG-4B | B61: FALSE | C61: FALSE | D61: FALSE | E61: 0.12171 | F61: FALSE | G61: 0.07064 | H61: FALSE | I61: 0.06888 | J61: 0.05861 | K61: 2.54 | L61: FALSE | M61: 2.39 | N61: FALSE | O61: FALSE | P61: FALSE | Q61: FALSE | R61: FALSE
A62: AG-4C | B62: FALSE | C62: FALSE | D62: FALSE | E62: 0.13933 | F62: 0.07888 | G62: 0.05691 | H62: FALSE | I62: 0.06315 | J62: 0.05371 | K62: 5.85 | L62: 1 | M62: FALSE | N62: FALSE | O62: FALSE | P62: FALSE | Q62: FALSE | R62: FALSE
A63: AG-5A, AG-5D | B63: FALSE | C63: FALSE | D63: FALSE | E63: 0.14873 | F63: FALSE | G63: 0.07353 | H63: FALSE | I63: 0.07701 | J63: 0.06568 | K63: FALSE | L63: FALSE | M63: FALSE | N63: FALSE | O63: FALSE | P63: FALSE | Q63: 3.7 | R63: FALSE
A64: AG-5B, AG-5E | B64: FALSE | C64: FALSE | D64: FALSE | E64: 0.14527 | F64: FALSE | G64: 0.04884 | H64: FALSE | I64: 0.06894 | J64: 0.04053 | K64: 5.57 | L64: FALSE | M64: 4.45 | N64: FALSE | O64: FALSE | P64: FALSE | Q64: FALSE | R64: FALSE
A65: AG-5C, AG-5F | B65: FALSE | C65: FALSE | D65: FALSE | E65: 0.11976 | F65: 0.06915 | G65: 0.05031 | H65: FALSE | I65: 0.05596 | J65: 0.04739 | K65: 10.28 | L65: 1.93 | M65: FALSE | N65: FALSE | O65: FALSE | P65: FALSE | Q65: FALSE | R65: FALSE
A66: AG-RA | B66: FALSE | C66: FALSE | D66: FALSE | E66: 0.26735 | F66: FALSE | G66: 0.06733 | H66: FALSE | I66: 0.07446 | J66: 0.06338 | K66: FALSE | L66: FALSE | M66: FALSE | N66: FALSE | O66: FALSE | P66: FALSE | Q66: 1.31 | R66: FALSE
A67: AG-RB | B67: FALSE | C67: FALSE | D67: FALSE | E67: 0.24143 | F67: FALSE | G67: 0.06684 | H67: FALSE | I67: 0.06131 | J67: 0.05222 | K67: 2.18 | L67: FALSE | M67: 1.94 | N67: FALSE | O67: FALSE | P67: FALSE | Q67: FALSE | R67: FALSE
A68: AG-VA | B68: FALSE | C68: FALSE | D68: FALSE | E68: 0.23392 | F68: FALSE | G68: 0.06462 | H68: FALSE | I68: 0.07294 | J68: 0.06209 | K68: FALSE | L68: FALSE | M68: FALSE | N68: FALSE | O68: FALSE | P68: FALSE | Q68: 1.37 | R68: FALSE
A69: AG-VB | B69: FALSE | C69: FALSE | D69: FALSE | E69: 0.21601 | F69: FALSE | G69: 0.06502 | H69: FALSE | I69: 0.06154 | J69: 0.0524 | K69: 2.29 | L69: FALSE | M69: 1.78 | N69: FALSE | O69: FALSE | P69: FALSE | Q69: FALSE | R69: FALSE
A72: SVCEA Generation | C72: Flat Rate Options | E72: TOU Rate Options | K72: Demand Charges
A73: Rate Schedules | B73: =B2 -> All Usage | C73: =C2 -> Summer | D73: Winter | E73: Summer Peak | F73: Summer Partial Peak | G73: Summer Off Peak | H73: Winter Peak | I73: Winter Partial Peak | J73: Winter Off Peak | K73: Summer Peak | L73: Summer Partial Peak | M73: Summer Maximum | N73: Winter Off Peak | O73: Winter Partial | P73: Winter Maximum | Q73: Conn. Load Sum. | R73: Conn. Load Win. | S73: PCIA Mapping
A74: =A39 -> A1 (COM-1) | B74: FALSE | C74: 0.09139 | D74: 0.05581 | E74: FALSE | F74: FALSE | G74: FALSE | H74: FALSE | I74: FALSE | J74: FALSE | K74: FALSE | L74: FALSE | M74: FALSE | N74: FALSE | O74: FALSE | P74: FALSE | Q74: FALSE | R74: FALSE | S74: ='PCIA FF'!$A$3 -> A1
A75: A1X (COM-1 TOU) | B75: FALSE | C75: FALSE | D75: FALSE | E75: 0.10691 | F75: 0.0835 | G75: 0.05641 | H75: FALSE | I75: 0.0833 | J75: 0.0626 | K75: FALSE | L75: FALSE | M75: FALSE | N75: FALSE | O75: FALSE | P75: FALSE | Q75: FALSE | R75: FALSE | S75: ='PCIA FF'!$A$3 -> A1
A76: A6 (COM-6) | B76: FALSE | C76: FALSE | D76: FALSE | E76: 0.33857 | F76: 0.10139 | G76: 0.04368 | H76: FALSE | I76: 0.06889 | J76: 0.05157 | K76: FALSE | L76: FALSE | M76: FALSE | N76: FALSE | O76: FALSE | P76: FALSE | Q76: FALSE | R76: FALSE | S76: ='PCIA FF'!$A$3 -> A1
A77: A10A (COM-10) | B77: FALSE | C77: 0.08066 | D77: 0.05653 | E77: FALSE | F77: FALSE | G77: FALSE | H77: FALSE | I77: FALSE | J77: FALSE | K77: FALSE | L77: FALSE | M77: 4.84 | N77: FALSE | O77: FALSE | P77: FALSE | Q77: FALSE | R77: FALSE | S77: ='PCIA FF'!$A$4 -> A10
A78: A10B (COM-10-TOU) | B78: FALSE | C78: FALSE | D78: FALSE | E78: 0.13491 | F78: 0.08033 | G78: 0.05254 | H78: FALSE | I78: 0.06454 | J78: 0.04765 | K78: FALSE | L78: FALSE | M78: 4.84 | N78: FALSE | O78: FALSE | P78: FALSE | Q78: FALSE | R78: FALSE | S78: ='PCIA FF'!$A$4 -> A10
A79: E19S (COM-19S) | B79: FALSE | C79: FALSE | D79: FALSE | E79: 0.10473 | F79: 0.06463 | G79: 0.03808 | H79: FALSE | I79: 0.05915 | J79: 0.04467 | K79: 12.5 | L79: 3.09 | M79: FALSE | N79: FALSE | O79: FALSE | P79: FALSE | Q79: FALSE | R79: FALSE | S79: E19
A80: E19P (COM-19P) | B80: FALSE | C80: FALSE | D80: FALSE | E80: 0.09569 | F80: 0.05769 | G80: 0.03327 | H80: FALSE | I80: 0.05256 | J80: 0.0393 | K80: 11.18 | L80: 2.72 | M80: FALSE | N80: FALSE | O80: FALSE | P80: FALSE | Q80: FALSE | R80: FALSE | S80: E19
A81: E19T (COM-19T) | B81: FALSE | C81: FALSE | D81: FALSE | E81: 0.05999 | F81: 0.0475 | G81: 0.031 | H81: FALSE | I81: 0.04947 | J81: 0.03679 | K81: 12.3 | L81: 3.08 | M81: FALSE | N81: FALSE | O81: FALSE | P81: FALSE | Q81: FALSE | R81: FALSE | S81: E19
A82: =A47 -> E19SR (COM-19SR) | B82: FALSE | C82: FALSE | D82: FALSE | E82: 0.24256 | F82: 0.09501 | G82: 0.03808 | H82: FALSE | I82: 0.05915 | J82: 0.04467 | K82: FALSE | L82: FALSE | M82: FALSE | N82: FALSE | O82: FALSE | P82: FALSE | Q82: FALSE | R82: FALSE | S82: E19
A83: E19PR (COM-19PR) | B83: FALSE | C83: FALSE | D83: FALSE | E83: 0.22787 | F83: 0.08775 | G83: 0.03327 | H83: FALSE | I83: 0.05256 | J83: 0.0393 | K83: FALSE | L83: FALSE | M83: FALSE | N83: FALSE | O83: FALSE | P83: FALSE | Q83: FALSE | R83: FALSE | S83: E19
A84: E19TR (COM-19TR) | B84: FALSE | C84: FALSE | D84: FALSE | E84: 0.227 | F84: 0.08436 | G84: 0.031 | H84: FALSE | I84: 0.04947 | J84: 0.03679 | K84: FALSE | L84: FALSE | M84: FALSE | N84: FALSE | O84: FALSE | P84: FALSE | Q84: FALSE | R84: FALSE | S84: E19
A85: =A50 -> E20S (COM-20S) | B85: FALSE | C85: FALSE | D85: FALSE | E85: 0.0968 | F85: 0.06032 | G85: 0.03527 | H85: FALSE | I85: 0.05503 | J85: 0.04145 | K85: 12.12 | L85: 2.99 | M85: FALSE | N85: FALSE | O85: FALSE | P85: FALSE | Q85: FALSE | R85: FALSE | S85: ='PCIA FF'!A11 -> E20S
A86: E20P (COM-20P) | B86: FALSE | C86: FALSE | D86: FALSE | E86: 0.10074 | F86: 0.06052 | G86: 0.03579 | H86: FALSE | I86: 0.05523 | J86: 0.04187 | K86: 13.31 | L86: 3.15 | M86: FALSE | N86: FALSE | O86: FALSE | P86: FALSE | Q86: FALSE | R86: FALSE | S86: ='PCIA FF'!A10 -> E20P
A87: E20T (COM-20T) | B87: FALSE | C87: FALSE | D87: FALSE | E87: 0.06134 | F87: 0.04923 | G87: 0.0332 | H87: FALSE | I87: 0.05113 | J87: 0.03883 | K87: 15.73 | L87: 3.75 | M87: FALSE | N87: FALSE | O87: FALSE | P87: FALSE | Q87: FALSE | R87: FALSE | S87: ='PCIA FF'!A9 -> E20T
A88: E20SR (COM-20SR) | B88: FALSE | C88: FALSE | D88: FALSE | E88: 0.21961 | F88: 0.09046 | G88: 0.03527 | H88: FALSE | I88: 0.05503 | J88: 0.04145 | K88: FALSE | L88: FALSE | M88: FALSE | N88: FALSE | O88: FALSE | P88: FALSE | Q88: FALSE | R88: FALSE | S88: =S85 -> E20S
A89: E20PR (COM-20PR) | B89: FALSE | C89: FALSE | D89: FALSE | E89: 0.23762 | F89: 0.09008 | G89: 0.03579 | H89: FALSE | I89: 0.05523 | J89: 0.04187 | K89: FALSE | L89: FALSE | M89: FALSE | N89: FALSE | O89: FALSE | P89: FALSE | Q89: FALSE | R89: FALSE | S89: =S86 -> E20P
A90: E20TR (COM-20TR) | B90: FALSE | C90: FALSE | D90: FALSE | E90: 0.2302 | F90: 0.08486 | G90: 0.0332 | H90: FALSE | I90: 0.05113 | J90: 0.03883 | K90: FALSE | L90: FALSE | M90: FALSE | N90: FALSE | O90: FALSE | P90: FALSE | Q90: FALSE | R90: FALSE | S90: =S87 -> E20T
A91: LS-1, LS-2, LS-3 (SL-1) | B91: 0.07429 | C91: FALSE | D91: FALSE | E91: FALSE | F91: FALSE | G91: FALSE | H91: FALSE | I91: FALSE | J91: FALSE | K91: FALSE | L91: FALSE | M91: FALSE | N91: FALSE | O91: FALSE | P91: FALSE | Q91: FALSE | R91: FALSE | S91: ='PCIA FF'!A6 -> Streelights
A92: TC-1 | B92: 0.06327 | C92: FALSE | D92: FALSE | E92: FALSE | F92: FALSE | G92: FALSE | H92: FALSE | I92: FALSE | J92: FALSE | K92: FALSE | L92: FALSE | M92: FALSE | N92: FALSE | O92: FALSE | P92: FALSE | Q92: FALSE | R92: FALSE | S92: =S74 -> A1
A93: AG-1A | B93: FALSE | C93: 0.07647 | D93: 0.057 | E93: FALSE | F93: FALSE | G93: FALSE | H93: FALSE | I93: FALSE | J93: FALSE | K93: FALSE | L93: FALSE | M93: FALSE | N93: FALSE | O93: FALSE | P93: FALSE | Q93: 1.35 | R93: FALSE | S93: Agriculture
A94: AG-1B | B94: FALSE | C94: 0.0794 | D94: 0.05707 | E94: FALSE | F94: FALSE | G94: FALSE | H94: FALSE | I94: FALSE | J94: FALSE | K94: FALSE | L94: FALSE | M94: 2.02 | N94: FALSE | O94: FALSE | P94: FALSE | Q94: FALSE | R94: FALSE | S94: =S93 -> Agriculture
A95: AG-4A | B95: FALSE | C95: FALSE | D95: FALSE | E95: 0.13547 | F95: FALSE | G95: 0.04606 | H95: FALSE | I95: 0.05012 | J95: 0.03947 | K95: FALSE | L95: FALSE | M95: FALSE | N95: FALSE | O95: FALSE | P95: FALSE | Q95: 1.34 | R95: FALSE | S95: =S94 -> Agriculture
A96: AG-4B | B96: FALSE | C96: FALSE | D96: FALSE | E96: 0.09863 | F96: FALSE | G96: 0.04807 | H96: FALSE | I96: 0.04633 | J96: 0.03616 | K96: 2.51 | L96: FALSE | M96: 2.37 | N96: FALSE | O96: FALSE | P96: FALSE | Q96: FALSE | R96: FALSE | S96: Agriculture
A97: AG-4C | B97: FALSE | C97: FALSE | D97: FALSE | E97: 0.11608 | F97: 0.05623 | G97: 0.03448 | H97: FALSE | I97: 0.04066 | J97: 0.03131 | K97: 5.79 | L97: 0.99 | M97: FALSE | N97: FALSE | O97: FALSE | P97: FALSE | Q97: FALSE | R97: FALSE | S97: Agriculture
A98: AG-5A, AG-5D | B98: FALSE | C98: FALSE | D98: FALSE | E98: 0.12538 | F98: FALSE | G98: 0.05093 | H98: FALSE | I98: 0.05438 | J98: 0.04316 | K98: FALSE | L98: FALSE | M98: FALSE | N98: FALSE | O98: FALSE | P98: FALSE | Q98: 3.66 | R98: FALSE | S98: Agriculture
A99: AG-5B, AG-5E | B99: FALSE | C99: FALSE | D99: FALSE | E99: 0.12196 | F99: FALSE | G99: 0.02649 | H99: FALSE | I99: 0.04639 | J99: 0.01826 | K99: 5.51 | L99: FALSE | M99: 4.41 | N99: FALSE | O99: FALSE | P99: FALSE | Q99: FALSE | R99: FALSE | S99: Agriculture
A100: =A65 -> AG-5C, AG-5F | B100: FALSE | C100: FALSE | D100: FALSE | E100: 0.0967 | F100: 0.0466 | G100: 0.02795 | H100: FALSE | I100: 0.03354 | J100: 0.02506 | K100: 10.18 | L100: 1.91 | M100: FALSE | N100: FALSE | O100: FALSE | P100: FALSE | Q100: FALSE | R100: FALSE | S100: Agriculture
A101: AG-RA | B101: FALSE | C101: FALSE | D101: FALSE | E101: 0.24282 | F101: FALSE | G101: 0.0448 | H101: FALSE | I101: 0.05186 | J101: 0.04089 | K101: FALSE | L101: FALSE | M101: FALSE | N101: FALSE | O101: FALSE | P101: FALSE | Q101: 1.3 | R101: FALSE | S101: Agriculture
A102: AG-RB | B102: FALSE | C102: FALSE | D102: FALSE | E102: 0.21716 | F102: FALSE | G102: 0.04431 | H102: FALSE | I102: 0.03884 | J102: 0.02984 | K102: 2.16 | L102: FALSE | M102: 1.92 | N102: FALSE | O102: FALSE | P102: FALSE | Q102: FALSE | R102: FALSE | S102: Agriculture
A103: AG-VA | B103: FALSE | C103: FALSE | D103: FALSE | E103: 0.20972 | F103: FALSE | G103: 0.04211 | H103: FALSE | I103: 0.05035 | J103: 0.03961 | K103: FALSE | L103: FALSE | M103: FALSE | N103: FALSE | O103: FALSE | P103: FALSE | Q103: 1.36 | R103: FALSE | S103: Agriculture
A104: AG-VB | B104: FALSE | C104: FALSE | D104: FALSE | E104: 0.19199 | F104: FALSE | G104: 0.04251 | H104: FALSE | I104: 0.03906 | J104: 0.03002 | K104: 2.27 | L104: FALSE | M104: 1.76 | N104: FALSE | O104: FALSE | P104: FALSE | Q104: FALSE | R104: FALSE | S104: Agriculture

Sheet PCIA FF (hidden)
A1: PCIA | C1: 2009 | D1: 2010 | E1: 2011 | F1: 2012 | G1: 2013 | H1: 2014 | I1: 2015 | J1: 2016 | K1: 2017 | N1: Error-checking and debugging:
A2: Residential | N2: Min | O2: Max
A3: A1 | C3: 0.01861 | D3: 0.02112 | E3: 0.02201 | F3: 0.02271 | G3: 0.0226 | H3: 0.02221 | I3: 0.02191 | J3: 0.02199 | K3: 0.02199 | N3: =MIN(C3:K3) -> 0.01861 | O3: =MAX(C3:K3) -> 0.02271
A4: A10 | C4: 0.01906 | D4: 0.02163 | E4: 0.02255 | F4: 0.02326 | G4: 0.02315 | H4: 0.02276 | I4: 0.02245 | J4: 0.02253 | K4: 0.02253 | N4: =MIN(C4:K4) -> 0.01906 | O4: =MAX(C4:K4) -> 0.02326
A5: E19 | C5: 0.01598 | D5: 0.01814 | E5: 0.0189 | F5: 0.0195 | G5: 0.01941 | H5: 0.01908 | I5: 0.01882 | J5: 0.01889 | K5: 0.01889 | N5: 0.01598 | O5: 0.0195
A6: Streelights | C6: 0.00359 | D6: 0.00407 | E6: 0.00424 | F6: 0.00437 | G6: 0.00435 | H6: 0.00428 | I6: 0.00422 | J6: 0.00424 | K6: 0.00424 | N6: 0.00359 | O6: 0.00437
A7: Standby | C7: 0.00865 | D7: 0.00981 | E7: 0.01023 | F7: 0.01055 | G7: 0.0105 | H7: 0.01032 | I7: 0.01018 | J7: 0.01022 | K7: 0.01022 | N7: 0.00865 | O7: 0.01055
A8: Agriculture | C8: 0.01806 | D8: 0.02049 | E8: 0.02136 | F8: 0.02203 | G8: 0.02193 | H8: 0.02156 | I8: 0.02126 | J8: 0.02134 | K8: 0.02134 | N8: 0.01806 | O8: 0.02203
A9: E20T | C9: 0.01297 | D9: 0.01472 | E9: 0.01534 | F9: 0.01582 | G9: 0.01575 | H9: 0.01548 | I9: 0.01527 | J9: 0.01532 | K9: 0.01532 | N9: 0.01297 | O9: 0.01582
A10: E20P | C10: 0.01422 | D10: 0.01614 | E10: 0.01682 | F10: 0.01735 | G10: 0.01727 | H10: 0.01697 | I10: 0.01674 | J10: 0.0168 | K10: 0.0168 | N10: 0.01422 | O10: 0.01735
A11: E20S | C11: 0.01534 | D11: 0.01741 | E11: 0.01814 | F11: 0.01872 | G11: 0.01863 | H11: 0.01831 | I11: 0.01806 | J11: 0.01813 | K11: 0.01813 | N11: 0.01534 | O11: 0.01872
A14: FFS | B14: Pre-2009 | C14: =C1 -> 2009 | D14: =D1 -> 2010 | E14: 2011 | F14: 2012 | G14: 2013 | H14: 2014 | I14: 2015 | J14: 2016 | K14: =K1 -> 2017
A15: Residential
A16: A1 | B16: 0.00083 | C16: 0.00068 | D16: 0.00066 | E16: 0.00065 | F16: 0.00064 | G16: 0.00064 | H16: 0.00065 | I16: 0.00065 | J16: 0.00065 | K16: 0.00065 | N16: 0.00064 | O16: 0.00068
A17: A10 | B17: 0.00087 | C17: 0.00071 | D17: 0.00069 | E17: 0.00068 | F17: 0.00067 | G17: 0.00067 | H17: 0.00068 | I17: 0.00068 | J17: 0.00068 | K17: 0.00068 | N17: 0.00067 | O17: 0.00071
A18: E19 | B18: 0.0008 | C18: 0.00066 | D18: 0.00064 | E18: 0.00064 | F18: 0.00063 | G18: 0.00063 | H18: 0.00063 | I18: 0.00064 | J18: 0.00064 | K18: 0.00064 | N18: 0.00063 | O18: 0.00066
A19: Streelights | B19: 0.00068 | C19: 0.00065 | D19: 0.00064 | E19: 0.00064 | F19: 0.00064 | G19: 0.00064 | H19: 0.00064 | I19: 0.00064 | J19: 0.00064 | K19: 0.00064 | N19: 0.00064 | O19: 0.00065
A20: Standby | B20: 0.0006 | C20: 0.00053 | D20: 0.00052 | E20: 0.00052 | F20: 0.00051 | G20: 0.00051 | H20: 0.00052 | I20: 0.00052 | J20: 0.00052 | K20: 0.00052 | N20: 0.00051 | O20: 0.00053
A21: Agriculture | B21: 0.0007 | C21: 0.00054 | D21: 0.00052 | E21: 0.00052 | F21: 0.00051 | G21: 0.00051 | H21: 0.00051 | I21: 0.00052 | J21: 0.00052 | K21: 0.00052 | N21: 0.00051 | O21: 0.00054
A22: E20T | B22: 0.00067 | C22: 0.00056 | D22: 0.00055 | E22: 0.00054 | F22: 0.00054 | G22: 0.00054 | H22: 0.00054 | I22: 0.00054 | J22: 0.00054 | K22: 0.00054 | N22: 0.00054 | O22: 0.00056
A23: E20P | B23: 0.00073 | C23: 0.00061 | D23: 0.0006 | E23: 0.00059 | F23: 0.00059 | G23: 0.00059 | H23: 0.00059 | I23: 0.00059 | J23: 0.00059 | K23: 0.00059 | N23: 0.00059 | O23: 0.00061
A24: E20S | B24: 0.00075 | C24: 0.00062 | D24: 0.00061 | E24: 0.0006 | F24: 0.00059 | G24: 0.0006 | H24: 0.0006 | I24: 0.0006 | J24: 0.0006 | K24: 0.0006 | N24: 0.00059 | O24: 0.00062
A27: Solar Prem. (Solar Choice Premium) | B27: All Usage
A28: Residential | B28: 0.0261
A29: A1 | B29: 0.01671
A30: A10 | B30: 0.0149
A31: E19 | B31: 0.01699
A32: Streelights | B32: 0.01587
A33: Agriculture | B33: 0.03341
A34: E20T | B34: 0.02915
A35: E20P | B35: 0.02388
A36: E20S | B36: 0.02133

Sheet CARE (hidden)
A1: Commercial Care Discounts | F1: CARE Ind? | G1: ='Cost Comparison'!R14 -> No
C2: Usage | D2: Discount | F2: Eligible Usage | G2: =Calculation!E3 -> 0
A3: A1 | B3: 0.07894 | C3: =IF(AND($G$1="Yes",Calculation!$E$2=CARE!$A3,'Cost Comparison'!B6<>"TC-1"),Calculation!$E$3,0) -> 0 | D3: =B3*C3 -> 0
A4: A6 | B4: 0.07628 | C4: =IF(AND($G$1="Yes",Calculation!$E$2=CARE!$A4),Calculation!$E$3,0) -> 0 | D4: =B4*C4 -> 0
A5: A10 | B5: 0.07066 | C5: =IF(AND($G$1="Yes",Calculation!$E$2=CARE!$A5),Calculation!$E$3,0) -> 0 | D5: =B5*C5 -> 0
A6: E19 | B6: 0.06262 | C6: =IF(AND($G$1="Yes",Calculation!$E$2=CARE!$A6),Calculation!$E$3,0) -> 0 | D6: =B6*C6 -> 0
A7: E20 | B7: 0.05145 | C7: =IF(AND($G$1="Yes",Calculation!$E$2=CARE!$A7),Calculation!$E$3,0) -> 0 | D7: 0

Sheet Rebundled Rates (hidden)
B2: A1X (COM-1 TOU) | C2: MCE | G2: PG&E | H2: Overall
B3: Season | C3: MCE Gen. | D3: PG&E Delivery | E3: PG&E Fees | F3: Effective Rate | G3: PG&E Rate | H3: % Diff.
A4: Non-Seasonal | B4: All Usage | C4: =IF(INDEX(Rates!$A$73:$J$106,MATCH($B$2,Rates!$A$73:$A$106,0),MATCH('Rebundled Rates'!B4,Rates!$2:$2,0))=FALSE,"",INDEX(Rates!$A$73:$J$106,MATCH($B$2,Rates!$A$73:$A$106,0),MATCH('Rebundled Rates'!B4,Rates!$2:$2,0))) ->  | D4: =IF(INDEX(Rates!$A$38:$J$69,MATCH('Rebundled Rates'!$B$2,Rates!$A$2:$A$35,0),MATCH('Rebundled Rates'!B4,Rates!$2:$2,0))=FALSE,"",G4-INDEX(Rates!$A$38:$J$69,MATCH('Rebundled Rates'!$B$2,Rates!$A$2:$A$35,0),MATCH('Rebundled Rates'!B4,Rates!$2:$2,0))) ->  | E4: =IF(C4="","",VLOOKUP(VLOOKUP($B$2,Rates!$A$72:$S$106,19,0),'PCIA FF'!$A:$O,MATCH(MAX('PCIA FF'!$1:$1),'PCIA FF'!$1:$1,0),0)+VLOOKUP(VLOOKUP($B$2,Rates!$A$72:$S$106,19,0),'PCIA FF'!$14:$24,MATCH(MAX('PCIA FF'!$1:$1),'PCIA FF'!$1:$1,0),0)) ->  | F4: =IF(SUM(C4:E4)=0,"",SUM(C4:E4)) ->  | G4: =IF(INDEX(Rates!$A$2:$J$35,MATCH('Rebundled Rates'!$B$2,Rates!$A$2:$A$35,0),MATCH('Rebundled Rates'!B4,Rates!$2:$2,0))=FALSE,"",INDEX(Rates!$A$2:$J$35,MATCH('Rebundled Rates'!$B$2,Rates!$A$2:$A$35,0),MATCH('Rebundled Rates'!B4,Rates!$2:$2,0))) ->  | H4: =IFERROR((F4/G4)-1,"") -> 
A5: Non-TOU | B5: =Rates!C2 -> Summer | C5: =IF(INDEX(Rates!$A$73:$J$106,MATCH($B$2,Rates!$A$73:$A$106,0),MATCH('Rebundled Rates'!B5,Rates!$2:$2,0))=FALSE,"",INDEX(Rates!$A$73:$J$106,MATCH($B$2,Rates!$A$73:$A$106,0),MATCH('Rebundled Rates'!B5,Rates!$2:$2,0))) ->  | D5: =IF(INDEX(Rates!$A$38:$J$69,MATCH('Rebundled Rates'!$B$2,Rates!$A$2:$A$35,0),MATCH('Rebundled Rates'!B5,Rates!$2:$2,0))=FALSE,"",G5-INDEX(Rates!$A$38:$J$69,MATCH('Rebundled Rates'!$B$2,Rates!$A$2:$A$35,0),MATCH('Rebundled Rates'!B5,Rates!$2:$2,0))) ->  | E5: =IF(C5="","",VLOOKUP(VLOOKUP($B$2,Rates!$A$72:$S$106,19,0),'PCIA FF'!$A:$O,MATCH(MAX('PCIA FF'!$1:$1),'PCIA FF'!$1:$1,0),0)+VLOOKUP(VLOOKUP($B$2,Rates!$A$72:$S$106,19,0),'PCIA FF'!$14:$24,MATCH(MAX('PCIA FF'!$1:$1),'PCIA FF'!$1:$1,0),0)) ->  | F5: =IF(SUM(C5:E5)=0,"",SUM(C5:E5)) ->  | G5: =IF(INDEX(Rates!$A$2:$J$35,MATCH('Rebundled Rates'!$B$2,Rates!$A$2:$A$35,0),MATCH('Rebundled Rates'!B5,Rates!$2:$2,0))=FALSE,"",INDEX(Rates!$A$2:$J$35,MATCH('Rebundled Rates'!$B$2,Rates!$A$2:$A$35,0),MATCH('Rebundled Rates'!B5,Rates!$2:$2,0))) ->  | H5: =IFERROR((F5/G5)-1,"") -> 
A6: Non-TOU | B6: =Rates!D2 -> Winter | C6: =IF(INDEX(Rates!$A$73:$J$106,MATCH($B$2,Rates!$A$73:$A$106,0),MATCH('Rebundled Rates'!B6,Rates!$2:$2,0))=FALSE,"",INDEX(Rates!$A$73:$J$106,MATCH($B$2,Rates!$A$73:$A$106,0),MATCH('Rebundled Rates'!B6,Rates!$2:$2,0))) ->  | D6: =IF(INDEX(Rates!$A$38:$J$69,MATCH('Rebundled Rates'!$B$2,Rates!$A$2:$A$35,0),MATCH('Rebundled Rates'!B6,Rates!$2:$2,0))=FALSE,"",G6-INDEX(Rates!$A$38:$J$69,MATCH('Rebundled Rates'!$B$2,Rates!$A$2:$A$35,0),MATCH('Rebundled Rates'!B6,Rates!$2:$2,0))) ->  | E6: =IF(C6="","",VLOOKUP(VLOOKUP($B$2,Rates!$A$72:$S$106,19,0),'PCIA FF'!$A:$O,MATCH(MAX('PCIA FF'!$1:$1),'PCIA FF'!$1:$1,0),0)+VLOOKUP(VLOOKUP($B$2,Rates!$A$72:$S$106,19,0),'PCIA FF'!$14:$24,MATCH(MAX('PCIA FF'!$1:$1),'PCIA FF'!$1:$1,0),0)) ->  | G6: =IF(INDEX(Rates!$A$2:$J$35,MATCH('Rebundled Rates'!$B$2,Rates!$A$2:$A$35,0),MATCH('Rebundled Rates'!B6,Rates!$2:$2,0))=FALSE,"",INDEX(Rates!$A$2:$J$35,MATCH('Rebundled Rates'!$B$2,Rates!$A$2:$A$35,0),MATCH('Rebundled Rates'!B6,Rates!$2:$2,0))) -> 
A7: TOU Usage | B7: =Rates!E2 -> Summer Peak | C7: =IF(INDEX(Rates!$A$73:$J$106,MATCH($B$2,Rates!$A$73:$A$106,0),MATCH('Rebundled Rates'!B7,Rates!$2:$2,0))=FALSE,"",INDEX(Rates!$A$73:$J$106,MATCH($B$2,Rates!$A$73:$A$106,0),MATCH('Rebundled Rates'!B7,Rates!$2:$2,0))) -> 0.10691 | D7: =IF(INDEX(Rates!$A$38:$J$69,MATCH('Rebundled Rates'!$B$2,Rates!$A$2:$A$35,0),MATCH('Rebundled Rates'!B7,Rates!$2:$2,0))=FALSE,"",G7-INDEX(Rates!$A$38:$J$69,MATCH('Rebundled Rates'!$B$2,Rates!$A$2:$A$35,0),MATCH('Rebundled Rates'!B7,Rates!$2:$2,0))) -> 0.13212 | E7: =IF(C7="","",VLOOKUP(VLOOKUP($B$2,Rates!$A$72:$S$106,19,0),'PCIA FF'!$A:$O,MATCH(MAX('PCIA FF'!$1:$1),'PCIA FF'!$1:$1,0),0)+VLOOKUP(VLOOKUP($B$2,Rates!$A$72:$S$106,19,0),'PCIA FF'!$14:$24,MATCH(MAX('PCIA FF'!$1:$1),'PCIA FF'!$1:$1,0),0)) -> 0.02264 | F7: =IF(SUM(C7:E7)=0,"",SUM(C7:E7)) -> 0.26167 | G7: =IF(INDEX(Rates!$A$2:$J$35,MATCH('Rebundled Rates'!$B$2,Rates!$A$2:$A$35,0),MATCH('Rebundled Rates'!B7,Rates!$2:$2,0))=FALSE,"",INDEX(Rates!$A$2:$J$35,MATCH('Rebundled Rates'!$B$2,Rates!$A$2:$A$35,0),MATCH('Rebundled Rates'!B7,Rates!$2:$2,0))) -> 0.26298 | H7: =IFERROR((F7/G7)-1,"") -> -0.004981367404
A8: TOU Usage | B8: =Rates!F2 -> Summer Partial Peak | C8: =IF(INDEX(Rates!$A$73:$J$106,MATCH($B$2,Rates!$A$73:$A$106,0),MATCH('Rebundled Rates'!B8,Rates!$2:$2,0))=FALSE,"",INDEX(Rates!$A$73:$J$106,MATCH($B$2,Rates!$A$73:$A$106,0),MATCH('Rebundled Rates'!B8,Rates!$2:$2,0))) -> 0.0835 | D8: =IF(INDEX(Rates!$A$38:$J$69,MATCH('Rebundled Rates'!$B$2,Rates!$A$2:$A$35,0),MATCH('Rebundled Rates'!B8,Rates!$2:$2,0))=FALSE,"",G8-INDEX(Rates!$A$38:$J$69,MATCH('Rebundled Rates'!$B$2,Rates!$A$2:$A$35,0),MATCH('Rebundled Rates'!B8,Rates!$2:$2,0))) -> 0.13212 | E8: =IF(C8="","",VLOOKUP(VLOOKUP($B$2,Rates!$A$72:$S$106,19,0),'PCIA FF'!$A:$O,MATCH(MAX('PCIA FF'!$1:$1),'PCIA FF'!$1:$1,0),0)+VLOOKUP(VLOOKUP($B$2,Rates!$A$72:$S$106,19,0),'PCIA FF'!$14:$24,MATCH(MAX('PCIA FF'!$1:$1),'PCIA FF'!$1:$1,0),0)) -> 0.02264 | F8: =IF(SUM(C8:E8)=0,"",SUM(C8:E8)) -> 0.23826 | G8: =IF(INDEX(Rates!$A$2:$J$35,MATCH('Rebundled Rates'!$B$2,Rates!$A$2:$A$35,0),MATCH('Rebundled Rates'!B8,Rates!$2:$2,0))=FALSE,"",INDEX(Rates!$A$2:$J$35,MATCH('Rebundled Rates'!$B$2,Rates!$A$2:$A$35,0),MATCH('Rebundled Rates'!B8,Rates!$2:$2,0))) -> 0.23933 | H8: =IFERROR((F8/G8)-1,"") -> -0.004470814357
A9: TOU Usage | B9: =Rates!G2 -> Summer Off Peak | C9: =IF(INDEX(Rates!$A$73:$J$106,MATCH($B$2,Rates!$A$73:$A$106,0),MATCH('Rebundled Rates'!B9,Rates!$2:$2,0))=FALSE,"",INDEX(Rates!$A$73:$J$106,MATCH($B$2,Rates!$A$73:$A$106,0),MATCH('Rebundled Rates'!B9,Rates!$2:$2,0))) -> 0.05641 | D9: =IF(INDEX(Rates!$A$38:$J$69,MATCH('Rebundled Rates'!$B$2,Rates!$A$2:$A$35,0),MATCH('Rebundled Rates'!B9,Rates!$2:$2,0))=FALSE,"",G9-INDEX(Rates!$A$38:$J$69,MATCH('Rebundled Rates'!$B$2,Rates!$A$2:$A$35,0),MATCH('Rebundled Rates'!B9,Rates!$2:$2,0))) -> 0.13212 | E9: =IF(C9="","",VLOOKUP(VLOOKUP($B$2,Rates!$A$72:$S$106,19,0),'PCIA FF'!$A:$O,MATCH(MAX('PCIA FF'!$1:$1),'PCIA FF'!$1:$1,0),0)+VLOOKUP(VLOOKUP($B$2,Rates!$A$72:$S$106,19,0),'PCIA FF'!$14:$24,MATCH(MAX('PCIA FF'!$1:$1),'PCIA FF'!$1:$1,0),0)) -> 0.02264 | F9: 0.21117 | G9: =IF(INDEX(Rates!$A$2:$J$35,MATCH('Rebundled Rates'!$B$2,Rates!$A$2:$A$35,0),MATCH('Rebundled Rates'!B9,Rates!$2:$2,0))=FALSE,"",INDEX(Rates!$A$2:$J$35,MATCH('Rebundled Rates'!$B$2,Rates!$A$2:$A$35,0),MATCH('Rebundled Rates'!B9,Rates!$2:$2,0))) -> 0.21197 | H9: -0.003774118979
A10: TOU Usage | B10: =Rates!H2 -> Winter Peak | C10: =IF(INDEX(Rates!$A$73:$J$106,MATCH($B$2,Rates!$A$73:$A$106,0),MATCH('Rebundled Rates'!B10,Rates!$2:$2,0))=FALSE,"",INDEX(Rates!$A$73:$J$106,MATCH($B$2,Rates!$A$73:$A$106,0),MATCH('Rebundled Rates'!B10,Rates!$2:$2,0))) ->  | D10: =IF(INDEX(Rates!$A$38:$J$69,MATCH('Rebundled Rates'!$B$2,Rates!$A$2:$A$35,0),MATCH('Rebundled Rates'!B10,Rates!$2:$2,0))=FALSE,"",G10-INDEX(Rates!$A$38:$J$69,MATCH('Rebundled Rates'!$B$2,Rates!$A$2:$A$35,0),MATCH('Rebundled Rates'!B10,Rates!$2:$2,0))) ->  | E10: =IF(C10="","",VLOOKUP(VLOOKUP($B$2,Rates!$A$72:$S$106,19,0),'PCIA FF'!$A:$O,MATCH(MAX('PCIA FF'!$1:$1),'PCIA FF'!$1:$1,0),0)+VLOOKUP(VLOOKUP($B$2,Rates!$A$72:$S$106,19,0),'PCIA FF'!$14:$24,MATCH(MAX('PCIA FF'!$1:$1),'PCIA FF'!$1:$1,0),0)) ->  | G10: =IF(INDEX(Rates!$A$2:$J$35,MATCH('Rebundled Rates'!$B$2,Rates!$A$2:$A$35,0),MATCH('Rebundled Rates'!B10,Rates!$2:$2,0))=FALSE,"",INDEX(Rates!$A$2:$J$35,MATCH('Rebundled Rates'!$B$2,Rates!$A$2:$A$35,0),MATCH('Rebundled Rates'!B10,Rates!$2:$2,0))) -> 
A11: TOU Usage | B11: =Rates!I2 -> Winter Partial Peak | C11: =IF(INDEX(Rates!$A$73:$J$106,MATCH($B$2,Rates!$A$73:$A$106,0),MATCH('Rebundled Rates'!B11,Rates!$2:$2,0))=FALSE,"",INDEX(Rates!$A$73:$J$106,MATCH($B$2,Rates!$A$73:$A$106,0),MATCH('Rebundled Rates'!B11,Rates!$2:$2,0))) -> 0.0833 | D11: =IF(INDEX(Rates!$A$38:$J$69,MATCH('Rebundled Rates'!$B$2,Rates!$A$2:$A$35,0),MATCH('Rebundled Rates'!B11,Rates!$2:$2,0))=FALSE,"",G11-INDEX(Rates!$A$38:$J$69,MATCH('Rebundled Rates'!$B$2,Rates!$A$2:$A$35,0),MATCH('Rebundled Rates'!B11,Rates!$2:$2,0))) -> 0.11346 | E11: =IF(C11="","",VLOOKUP(VLOOKUP($B$2,Rates!$A$72:$S$106,19,0),'PCIA FF'!$A:$O,MATCH(MAX('PCIA FF'!$1:$1),'PCIA FF'!$1:$1,0),0)+VLOOKUP(VLOOKUP($B$2,Rates!$A$72:$S$106,19,0),'PCIA FF'!$14:$24,MATCH(MAX('PCIA FF'!$1:$1),'PCIA FF'!$1:$1,0),0)) -> 0.02264 | F11: 0.2194 | G11: =IF(INDEX(Rates!$A$2:$J$35,MATCH('Rebundled Rates'!$B$2,Rates!$A$2:$A$35,0),MATCH('Rebundled Rates'!B11,Rates!$2:$2,0))=FALSE,"",INDEX(Rates!$A$2:$J$35,MATCH('Rebundled Rates'!$B$2,Rates!$A$2:$A$35,0),MATCH('Rebundled Rates'!B11,Rates!$2:$2,0))) -> 0.22047 | H11: -0.004853268018
A12: TOU Usage | B12: =Rates!J2 -> Winter Off Peak | C12: =IF(INDEX(Rates!$A$73:$J$106,MATCH($B$2,Rates!$A$73:$A$106,0),MATCH('Rebundled Rates'!B12,Rates!$2:$2,0))=FALSE,"",INDEX(Rates!$A$73:$J$106,MATCH($B$2,Rates!$A$73:$A$106,0),MATCH('Rebundled Rates'!B12,Rates!$2:$2,0))) -> 0.0626 | D12: =IF(INDEX(Rates!$A$38:$J$69,MATCH('Rebundled Rates'!$B$2,Rates!$A$2:$A$35,0),MATCH('Rebundled Rates'!B12,Rates!$2:$2,0))=FALSE,"",G12-INDEX(Rates!$A$38:$J$69,MATCH('Rebundled Rates'!$B$2,Rates!$A$2:$A$35,0),MATCH('Rebundled Rates'!B12,Rates!$2:$2,0))) -> 0.11346 | E12: =IF(C12="","",VLOOKUP(VLOOKUP($B$2,Rates!$A$72:$S$106,19,0),'PCIA FF'!$A:$O,MATCH(MAX('PCIA FF'!$1:$1),'PCIA FF'!$1:$1,0),0)+VLOOKUP(VLOOKUP($B$2,Rates!$A$72:$S$106,19,0),'PCIA FF'!$14:$24,MATCH(MAX('PCIA FF'!$1:$1),'PCIA FF'!$1:$1,0),0)) -> 0.02264 | F12: 0.1987 | G12: =IF(INDEX(Rates!$A$2:$J$35,MATCH('Rebundled Rates'!$B$2,Rates!$A$2:$A$35,0),MATCH('Rebundled Rates'!B12,Rates!$2:$2,0))=FALSE,"",INDEX(Rates!$A$2:$J$35,MATCH('Rebundled Rates'!$B$2,Rates!$A$2:$A$35,0),MATCH('Rebundled Rates'!B12,Rates!$2:$2,0))) -> 0.19956 | H12: -0.004309480858
A13: Demand | B13: =Rates!K2 -> Summer Peak | C13: =IF(VLOOKUP($B$2,Rates!$A$73:$S$104,10+MATCH('Rebundled Rates'!B13,Rates!$K$73:$S$73,0),0)=FALSE,"",VLOOKUP($B$2,Rates!$A$73:$S$104,10+MATCH('Rebundled Rates'!B13,Rates!$K$73:$S$73,0),0)) ->  | D13: =IFERROR(G13-VLOOKUP($B$2,Rates!$A$38:$V$71,10+MATCH('Rebundled Rates'!B13,Rates!$K$2:$V$2,0),0),"") ->  | G13: =IF(VLOOKUP($B$2,Rates!$A$2:$V$35,10+MATCH('Rebundled Rates'!B13,Rates!$K$2:$V$2,0),0)=FALSE,"",VLOOKUP($B$2,Rates!$A$2:$V$35,10+MATCH('Rebundled Rates'!B13,Rates!$K$2:$V$2,0),0)) -> 
A14: Demand | B14: =Rates!L2 -> Summer Partial Peak | C14: =IF(VLOOKUP($B$2,Rates!$A$73:$S$104,10+MATCH('Rebundled Rates'!B14,Rates!$K$73:$S$73,0),0)=FALSE,"",VLOOKUP($B$2,Rates!$A$73:$S$104,10+MATCH('Rebundled Rates'!B14,Rates!$K$73:$S$73,0),0)) ->  | D14: =IFERROR(G14-VLOOKUP($B$2,Rates!$A$38:$V$71,10+MATCH('Rebundled Rates'!B14,Rates!$K$2:$V$2,0),0),"") ->  | G14: =IF(VLOOKUP($B$2,Rates!$A$2:$V$35,10+MATCH('Rebundled Rates'!B14,Rates!$K$2:$V$2,0),0)=FALSE,"",VLOOKUP($B$2,Rates!$A$2:$V$35,10+MATCH('Rebundled Rates'!B14,Rates!$K$2:$V$2,0),0)) -> 
A15: Demand | B15: =Rates!M2 -> Summer Maximum | C15: =IF(VLOOKUP($B$2,Rates!$A$73:$S$104,10+MATCH('Rebundled Rates'!B15,Rates!$K$73:$S$73,0),0)=FALSE,"",VLOOKUP($B$2,Rates!$A$73:$S$104,10+MATCH('Rebundled Rates'!B15,Rates!$K$73:$S$73,0),0)) ->  | D15: =IFERROR(G15-VLOOKUP($B$2,Rates!$A$38:$V$71,10+MATCH('Rebundled Rates'!B15,Rates!$K$2:$V$2,0),0),"") ->  | G15: =IF(VLOOKUP($B$2,Rates!$A$2:$V$35,10+MATCH('Rebundled Rates'!B15,Rates!$K$2:$V$2,0),0)=FALSE,"",VLOOKUP($B$2,Rates!$A$2:$V$35,10+MATCH('Rebundled Rates'!B15,Rates!$K$2:$V$2,0),0)) -> 
A16: Demand | B16: =Rates!N2 -> Winter Off Peak | C16: =IF(VLOOKUP($B$2,Rates!$A$73:$S$104,10+MATCH('Rebundled Rates'!B16,Rates!$K$73:$S$73,0),0)=FALSE,"",VLOOKUP($B$2,Rates!$A$73:$S$104,10+MATCH('Rebundled Rates'!B16,Rates!$K$73:$S$73,0),0)) ->  | D16: =IFERROR(G16-VLOOKUP($B$2,Rates!$A$38:$V$71,10+MATCH('Rebundled Rates'!B16,Rates!$K$2:$V$2,0),0),"") ->  | G16: =IF(VLOOKUP($B$2,Rates!$A$2:$V$35,10+MATCH('Rebundled Rates'!B16,Rates!$K$2:$V$2,0),0)=FALSE,"",VLOOKUP($B$2,Rates!$A$2:$V$35,10+MATCH('Rebundled Rates'!B16,Rates!$K$2:$V$2,0),0)) -> 
A17: Demand | B17: =Rates!O2 -> Winter Partial | C17: =IF(VLOOKUP($B$2,Rates!$A$73:$S$104,10+MATCH('Rebundled Rates'!B17,Rates!$K$73:$S$73,0),0)=FALSE,"",VLOOKUP($B$2,Rates!$A$73:$S$104,10+MATCH('Rebundled Rates'!B17,Rates!$K$73:$S$73,0),0)) ->  | D17: =IFERROR(G17-VLOOKUP($B$2,Rates!$A$38:$V$71,10+MATCH('Rebundled Rates'!B17,Rates!$K$2:$V$2,0),0),"") ->  | G17: =IF(VLOOKUP($B$2,Rates!$A$2:$V$35,10+MATCH('Rebundled Rates'!B17,Rates!$K$2:$V$2,0),0)=FALSE,"",VLOOKUP($B$2,Rates!$A$2:$V$35,10+MATCH('Rebundled Rates'!B17,Rates!$K$2:$V$2,0),0)) -> 
A18: Demand | B18: =Rates!P2 -> Winter Maximum | C18: =IF(VLOOKUP($B$2,Rates!$A$73:$S$104,10+MATCH('Rebundled Rates'!B18,Rates!$K$73:$S$73,0),0)=FALSE,"",VLOOKUP($B$2,Rates!$A$73:$S$104,10+MATCH('Rebundled Rates'!B18,Rates!$K$73:$S$73,0),0)) ->  | D18: =IFERROR(G18-VLOOKUP($B$2,Rates!$A$38:$V$71,10+MATCH('Rebundled Rates'!B18,Rates!$K$2:$V$2,0),0),"") ->  | F18: =IF(SUM(C18:E18)=0,"",SUM(C18:E18)) ->  | G18: =IF(VLOOKUP($B$2,Rates!$A$2:$V$35,10+MATCH('Rebundled Rates'!B18,Rates!$K$2:$V$2,0),0)=FALSE,"",VLOOKUP($B$2,Rates!$A$2:$V$35,10+MATCH('Rebundled Rates'!B18,Rates!$K$2:$V$2,0),0)) ->  | H18: =IFERROR((F18/G18)-1,"") -> 
A19: Ag. HP Load | B19: =Rates!Q2 -> Conn. Load Sum. | C19: =IF(VLOOKUP($B$2,Rates!$A$73:$S$104,10+MATCH('Rebundled Rates'!B19,Rates!$K$73:$S$73,0),0)=FALSE,"",VLOOKUP($B$2,Rates!$A$73:$S$104,10+MATCH('Rebundled Rates'!B19,Rates!$K$73:$S$73,0),0)) ->  | D19: =IFERROR(G19-VLOOKUP($B$2,Rates!$A$38:$V$71,10+MATCH('Rebundled Rates'!B19,Rates!$K$2:$V$2,0),0),"") ->  | F19: =IF(SUM(C19:E19)=0,"",SUM(C19:E19)) ->  | G19: =IF(VLOOKUP($B$2,Rates!$A$2:$V$35,10+MATCH('Rebundled Rates'!B19,Rates!$K$2:$V$2,0),0)=FALSE,"",VLOOKUP($B$2,Rates!$A$2:$V$35,10+MATCH('Rebundled Rates'!B19,Rates!$K$2:$V$2,0),0)) -> 
A20: Ag. HP Load | B20: =Rates!R2 -> Conn. Load Win. | C20: =IF(VLOOKUP($B$2,Rates!$A$73:$S$104,10+MATCH('Rebundled Rates'!B20,Rates!$K$73:$S$73,0),0)=FALSE,"",VLOOKUP($B$2,Rates!$A$73:$S$104,10+MATCH('Rebundled Rates'!B20,Rates!$K$73:$S$73,0),0)) ->  | D20: =IFERROR(G20-VLOOKUP($B$2,Rates!$A$38:$V$71,10+MATCH('Rebundled Rates'!B20,Rates!$K$2:$V$2,0),0),"") ->  | G20: =IF(VLOOKUP($B$2,Rates!$A$2:$V$35,10+MATCH('Rebundled Rates'!B20,Rates!$K$2:$V$2,0),0)=FALSE,"",VLOOKUP($B$2,Rates!$A$2:$V$35,10+MATCH('Rebundled Rates'!B20,Rates!$K$2:$V$2,0),0)) -> 

Sheet Changelog (hidden)
A1: 2016-11-15 | B1: Added Changelog
B2: Added lbs or metric tons for CO2 switch
B3: Changed CO2e description to CO2 (due to recently discovered information that PG&E emissions only includes CO2 and omits other equivalent gasses which would increase their emissions factor)
A4: 2017-01-03 | B4: Updated for PG&E AET
B5: Fixed AG-1 A/B maximum demand defect
B6: Fixed AG-4 C demand component defect
A7: 2017-03-01 | B7: Updated PCIA methodology
B8: Addressed PG&E Solar Choice Calculation issues
B9: Updated PG&E Solar Choice Rates
B10: Updated rates to PG&E 3/1 rate change
B11: Updated description of PCIA Vintages
B12: Added MCE 4/1 Rates
A14: 2017-06-07 | B14: split Billing days into billing days Summer and Billing Days Winter
B15: Changed Demand charges to be responsive to # of billing days in the month
